Workbook

Sheet Abstract
A2: Antofagasta PLC ESG Databook
F3: Version 01.2021
F4: Date 05.08.2022
B8: Antofagasta PLC ESG Databook
B9: This Environment, Social and Governance (ESG) Databook is part of Antofagasta PLC´s 15th annual Sustainability Report. Our last report was published in 2022 covering 2021 performance.
B10: The information presented in the ESG Databook, relates to data requirements from different ESG Standards and data frequently asked by our stakeholders. Additional data may be available on request. Please contact: sustainability@aminerals.cl
B11: This document is intended for use in conjunction with our website, the Annual Report, Sustainability Report, Climate Change Report, TCFD Progress Report, Social Management Report and Tax Report.
B12: For easier reference, the information has been organized according to ESG topics and ESG Reporting guidelines such as Global Reporting Initiative (GRI), Sustainability Accounting Standards Board (SASB) and the International Council on Mining and Metals (ICMM) Water Reporting requirements.
B16: Boundary and scope
B17: The scope of information is all sites under Antofagasta PLC’s operational control during 2018, 2019, 2020 and 2021. This includes Antofagasta Mining Division and the Transport Division.
B18: Mining Division includes Antofagasta PLC’s four copper mines in Chile: Minera Los Pelambres, Centinela, Antucoya and Zaldívar.
B19: Transport Division refers to Ferrocarril de Antofagasta a Bolivia (FCAB).
B20: All monetary figures in this report are expressed in USD unless otherwise specified.
C23: Key
D24: Data available
D25: Not available
D26: Not applicable
C29: Data hierarchy
D30: Category: Governance, Economic, Social, Environment
D31: Sub-Category: Specific topics related to each category
D32: Indicators: Key Performance Indicators

Sheet Tab index
A2: Antofagasta PLC ESG Databook
E3: Version 01.2021
E4: Date 05.08.2022
B8: Section | C8: Content
B9: Corporate Governance | C9: Quantitative data of Antofagasta PLC's board.
B10: Ethics | C10: Quantitative data relating Antofagasta PLC's coverage of the code of ethics and associated complaints, disaggregated by mining company, transport division and consolidated PLC.
B11: Supply | C11: Quantitative data of Antofagasta PLC's supply chain, disaggregated by mining company, transport division and consolidated PLC.
B12: Labour Practices | C12: Quantitative data of Antofagasta PLC's labour practices, disaggregated by mining company, transport division and consolidated PLC.
B13: Health and Safety | C13: Quantitative data of Antofagasta PLC's health and safety performance, disaggregated by mining company, transport division and consolidated PLC.
B14: Environmental Management | C14: Quantitative data of Antofagasta PLC's environmental performance, disaggregated by mining company, transport division and consolidated PLC.
B15: FCAB Water | C15: Quantitative data of the transport division's water performance.
B16: Copper Mark | C16: Results of Copper Mark evaluations.
B17: ICMM Reporting Commitments | C17: Qualitative data of ICMM minimum reporting commitments.
B18: ICMM Water - MD | C18: Quantitative data ICMM water, consolidated Mining Division.
B19: ICMM Water - MD Operations | C19: Quantitative data ICMM water, breakdown by mining operations.
B20: SASB - MD Operations | C20: Sustainability Accounting Standard Board (SASB) Index, Metal and Mining Industry Standard. Contains quantitative data, consolidated Mining Division, with breakdown by mining operations.

Sheet Corporate Governance
A2: Antofagasta PLC ESG Databook
A8: » Quantitative data of Antofagasta PLC's board.
A10: Indicators | D10: 2021 | E10: 2020 | F10: 2019 | G10: 2018
A11: GRI | B11: Required Data | C11: Unit | D11: Antofagasta PLC | E11: Antofagasta PLC | F11: Antofagasta PLC | G11: Antofagasta PLC
A12: Economic
A13: Corporate Governance
A14: Board Structure - Board of Director
A15: 102-22 | B15: Executive directors | C15: Number of members as of December 31 | D15: 0 | E15: 0 | F15: 0 | G15: 0
A16: 102-22 | B16: Non-executive directors | C16: Number of members as of December 31 | D16: 10 | E16: 10 | F16: 11 | G16: 11
A17: 102-22 | B17: Independent directors | C17: Number of members as of December 31 | D17: 6 | E17: 6 | F17: 7 | G17: 5
A18: 102-22 | B18: Non-independent directors | C18: Number of members as of December 31 | D18: 4 | E18: 4 | F18: 4 | G18: 5
B19: Total board size | C19: Number of members as of December 31 | D19: 10 | E19: 10 | F19: 11 | G19: 11
A20: Age Groups in the Board
A21: 405-1 | B21: Under 30 years old | C21: Percentage of members | D21: 0 | E21: 0 | F21: 0 | G21: 0
A22: 405-1 | B22: 30-50 years old | C22: Percentage of members | D22: 0 | E22: 0 | F22: 0 | G22: 0
A23: 405-1 | B23: Over 50 years old | C23: Percentage of members | D23: 1 | E23: 1 | F23: 1 | G23: 1
A24: Gender in the board
A25: 405-1 | B25: Female directors | C25: Percentage of members | D25: 0.3 | E25: 0.2 | F25: 0.22 | G25: 0.22
A26: 102-22; 405-1 | C26: Number of members as of December 31 | D26: 3 | E26: 2 | F26: 2 | G26: 2
A27: 405-1 | B27: Male directors | C27: Percentage of members | D27: 0.7 | E27: 0.8 | F27: 0.78 | G27: 0.78
A28: 102-22; 405-1 | C28: Number of members as of December 31 | D28: 7 | E28: 8 | F28: 9 | G28: 9
A29: Board Effectiveness
B30: Average board meeting attendance | C30: Percentage of meetings of board of directors | D30: 0.98 | E30: 0.98 | F30: 0.79 | G30: 0.95
B31: Minimum of attendance for all members required | C31: Percentage | D31: 1 | E31: 1 | F31: 1 | G31: 1
B32: Number of non-executive/independent directors with 4 or less other public mandates* | C32: Number of people | D32: 9 | E32: 8 | F32: 5 | G32: 10
A33: Average Tenure
B34: Average tenure of board members in years | C34: Year | D34: 9.5 | E34: 9.5 | F34: 11.72 | G34: 11.81
A35: 102-22 | B35: Under 5 years of tenure on the Board | C35: Number of members as of December 31 | D35: 4 | E35: 3 | F35: 3 | G35: 3
A36: 102-22 | B36: 6-9 years of tenure on the Board | C36: Number of members as of December 31 | D36: 3 | E36: 4 | F36: 4 | G36: 3
A37: 102-22 | B37: Over 9 years of tenure on the Board | C37: Number of members as of December 31 | D37: 3 | E37: 3 | F37: 4 | G37: 5
A38: Board Industry Experience
B39: Number of independent or non-executive members with industry experience (e.g., excludes executives) | C39: Number of people | D39: 6 | E39: 7 | F39: 8 | G39: 8
A41: * Number of non-executive/ independent directors with 4 or less other mandates: refers to the number of other external directorships in publicly listed companies held by members of the board of directors/supervisory board (examples include executive board positions such as CEO, or member of the board of directors at another company). Board memberships in private limited companies, educational institutes (school, college or universities) and in non-profit organizations are not considered in our definition of other mandates. Only the number of mandates for the independent and non-executive directors should be considered, not mandates for executive directors or employee representatives. In this section, both the actual number of directors with four or fewer other mandates is considered together with any corporate guidelines on restrictions on the number of other mandates.

Sheet Ethics
A2: Antofagasta PLC ESG Databook
A8: » Quantitative data relating Antofagasta PLC's coverage of the code of ethics and associated complaints, disaggregated by mining company, transport division and consolidated PLC.
A10: Indicators | D10: 2021 | L10: 2020 | T10: 2019 | AB10: 2018
A11: GRI | B11: Required Data | C11: Unit | D11: Corporate offices | E11: Pelambres | F11: Centinela | G11: Antucoya | H11: Zaldivar | I11: Mining Division | J11: Transport Division | K11: Antofagasta PLC | L11: Corporate offices | M11: Pelambres | N11: Centinela | O11: Antucoya | P11: Zaldivar | Q11: Mining Division | R11: Transport Division | S11: Antofagasta PLC | T11: Corporate offices | U11: Pelambres | V11: Centinela | W11: Antucoya | X11: Zaldivar | Y11: Mining Division | Z11: Transport Division | AA11: Antofagasta PLC | AB11: Corporate offices | AC11: Pelambres | AD11: Centinela | AE11: Antucoya | AF11: Zaldivar | AG11: Mining Division | AH11: Transport Division | AI11: Antofagasta PLC
A12: Governance
A13: Code of Conduct
A14: Percentage of Coverage of Code of Conduct / Ethics | B14: Percentage of coverage of Code of Conduct / Ethics
B15: Employee | C15: Percentage | D15: 1 | E15: 1 | F15: 1 | G15: 1 | H15: 1 | I15: 1 | J15: 1 | K15: 1 | L15: 1 | M15: 1 | N15: 1 | O15: 1 | P15: 1 | Q15: 1 | R15: 1 | S15: 1 | T15: 1 | U15: 1 | V15: 1 | W15: 1 | X15: 1 | Y15: 1 | Z15: 1 | AA15: 1 | AB15: 1 | AC15: 1 | AD15: 1 | AE15: 1 | AF15: 1 | AG15: 1 | AH15: 1 | AI15: 1
B16: Contractors / Suppliers / Service Providers | C16: Percentage | D16: 1 | E16: 1 | F16: 1 | G16: 1 | H16: 1 | I16: 1 | J16: 1 | K16: 1 | L16: 1 | M16: 1 | N16: 1 | O16: 1 | P16: 1 | Q16: 1 | R16: 1 | S16: 1 | T16: 1 | U16: 1 | V16: 1 | W16: 1 | X16: 1 | Y16: 1 | Z16: 1 | AA16: 1 | AB16: 1 | AC16: 1 | AD16: 1 | AE16: 1 | AF16: 1 | AG16: 1 | AH16: 1 | AI16: 1
B17: Subsidiaries | C17: Percentage | D17: 1 | E17: 1 | F17: 1 | G17: 1 | H17: 1 | I17: 1 | J17: 1 | K17: 1 | L17: 1 | M17: 1 | N17: 1 | O17: 1 | P17: 1 | Q17: 1 | R17: 1 | S17: 1 | T17: 1 | U17: 1 | V17: 1 | W17: 1 | X17: 1 | Y17: 1 | Z17: 1 | AA17: 1 | AB17: 1 | AC17: 1 | AD17: 1 | AE17: 1 | AF17: 1 | AG17: 1 | AH17: 1 | AI17: 1
B18: Joint ventures (including stakes above 10%) | C18: Percentage | D18: 1 | E18: 1 | F18: 1 | G18: 1 | H18: 1 | I18: 1 | J18: 1 | K18: 1 | L18: 1 | M18: 1 | N18: 1 | O18: 1 | P18: 1 | Q18: 1 | R18: 1 | S18: 1 | T18: 1 | U18: 1 | V18: 1 | W18: 1 | X18: 1 | Y18: 1 | Z18: 1 | AA18: 1 | AB18: 1 | AC18: 1 | AD18: 1 | AE18: 1 | AF18: 1 | AG18: 1 | AH18: 1 | AI18: 1
A19: Percentage Written / Digital Acknowledgement of Code of Conduct / Ethics | B19: Percentage written/digital acknowledgement of Code of Conduct / Ethics
B20: Employee | C20: Percentage | D20: 1 | E20: 1 | F20: 1 | G20: 1 | H20: 1 | I20: 1 | J20: 1 | K20: 1 | L20: 1 | M20: 1 | N20: 1 | O20: 1 | P20: 1 | Q20: 1 | R20: 1 | S20: 1 | T20: 1 | U20: 1 | V20: 1 | W20: 1 | X20: 1 | Y20: 1 | Z20: 1 | AA20: 1 | AB20: 1 | AC20: 1 | AD20: 1 | AE20: 1 | AF20: 1 | AG20: 1 | AH20: 1 | AI20: 1
B21: Contractors / Suppliers / Service Providers | C21: Percentage | D21: 1 | E21: 1 | F21: 1 | G21: 1 | H21: 1 | I21: 1 | J21: 1 | K21: 1 | L21: 1 | M21: 1 | N21: 1 | O21: 1 | P21: 1 | Q21: 1 | R21: 1 | S21: 1 | T21: 1 | U21: 1 | V21: 1 | W21: 1 | X21: 1 | Y21: 1 | Z21: 1 | AA21: 1 | AB21: 1 | AC21: 1 | AD21: 1 | AE21: 1 | AF21: 1 | AG21: 1 | AH21: 1 | AI21: 1
B22: Subsidiaries | C22: Percentage | D22: 1 | E22: 1 | F22: 1 | G22: 1 | H22: 1 | I22: 1 | J22: 1 | K22: 1 | L22: 1 | M22: 1 | N22: 1 | O22: 1 | P22: 1 | Q22: 1 | R22: 1 | S22: 1 | T22: 1 | U22: 1 | V22: 1 | W22: 1 | X22: 1 | Y22: 1 | Z22: 1 | AA22: 1 | AB22: 1 | AC22: 1 | AD22: 1 | AE22: 1 | AF22: 1 | AG22: 1 | AH22: 1 | AI22: 1
B23: Joint ventures (including stakes above 10%) | C23: Percentage | D23: 1 | E23: 1 | F23: 1 | G23: 1 | H23: 1 | I23: 1 | J23: 1 | K23: 1 | L23: 1 | M23: 1 | N23: 1 | O23: 1 | P23: 1 | Q23: 1 | R23: 1 | S23: 1 | T23: 1 | U23: 1 | V23: 1 | W23: 1 | X23: 1 | Y23: 1 | Z23: 1 | AA23: 1 | AB23: 1 | AC23: 1 | AD23: 1 | AE23: 1 | AF23: 1 | AG23: 1 | AH23: 1 | AI23: 1
A24: Complaints Received Through Whistleblower System
B25: Non-compliance with Code of Conduct (included: Fraud, Conflict of interest and Anti-competitive practice, and others) | C25: Reported case | D25: 9 | E25: 11 | F25: 15 | G25: 7 | H25: 16 | I25: =SUM(D25:H25) -> 58 | J25: 2 | K25: =SUM(D25:J25) -> 118 | L25: 12 | M25: 11 | N25: 21 | O25: 4 | P25: 6 | Q25: =SUM(L25:P25) -> 54 | R25: 2 | S25: =SUM(L25:R25) -> 110 | AA25: 209 | AI25: 127
B26: Non-compliance with regulation (law 20.393) | C26: Reported case | D26: 0 | E26: 0 | F26: 2 | G26: 0 | H26: 0 | I26: =SUM(D26:H26) -> 2 | J26: 0 | K26: =SUM(D26:J26) -> 4 | L26: 1 | M26: 1 | N26: 3 | O26: 3 | P26: 0 | Q26: =SUM(L26:P26) -> 8 | R26: 0 | S26: =SUM(L26:R26) -> 16
B27: Non sexual discrimination and harassment | C27: Reported case | D27: 19 | E27: 23 | F27: 21 | G27: 6 | H27: 7 | I27: =SUM(D27:H27) -> 76 | J27: 0 | K27: =SUM(D27:J27) -> 152 | L27: 7 | M27: 23 | N27: 37 | O27: 3 | P27: 17 | Q27: =SUM(L27:P27) -> 87 | R27: 1 | S27: =SUM(L27:R27) -> 175
B28: Sexual discrimination and harassment | C28: Reported case | D28: 4 | E28: 1 | F28: 0 | G28: 0 | H28: 0 | I28: =SUM(D28:H28) -> 5 | J28: 1 | K28: =SUM(D28:J28) -> 11 | L28: 0 | M28: 3 | N28: 3 | O28: 3 | P28: 0 | Q28: =SUM(L28:P28) -> 9 | R28: 1 | S28: =SUM(L28:R28) -> 19
B29: Non ethical complains | C29: Reported case | D29: 55 | E29: 60 | F29: 119 | G29: 23 | H29: 40 | I29: =SUM(D29:H29) -> 297 | J29: 18 | K29: =SUM(D29:J29) -> 612 | L29: 28 | M29: 42 | N29: 87 | O29: 22 | P29: 20 | Q29: =SUM(L29:P29) -> 199 | R29: 11 | S29: =SUM(L29:R29) -> 409 | AA29: 182 | AI29: 131
A30: Code of Ethics | B30: Code of Ethics
A31: 102-17 | B31: Complaints received under the Code | C31: Number of cases received | D31: 32 | E31: 35 | F31: 38 | G31: 13 | H31: 23 | I31: 141 | J31: 3 | K31: 144 | L31: 20 | M31: 38 | N31: 64 | O31: 13 | P31: 23 | Q31: 158 | R31: 4 | S31: 162 | T31: 29 | U31: 35 | V31: 89 | W31: 26 | X31: 19 | Y31: 198 | Z31: 11 | AA31: 209 | AB31: 9 | AC31: 24 | AD31: 51 | AE31: 8 | AF31: 28 | AG31: 120 | AH31: 7 | AI31: 127
A32: 102-18 | B32: All Complaints | C32: Total Complaints | D32: 87 | E32: 95 | F32: 157 | G32: 36 | H32: 63 | I32: 438 | J32: 21 | K32: 459 | L32: 48 | M32: 80 | N32: 151 | O32: 35 | P32: 43 | Q32: 357 | R32: 15 | S32: 372 | AA32: 391 | AI32: 258
A34: * All reported cases are investigated and when necessary action plans are implemented, such as i. Written warning; ii. Contract termination; iii. Training - Coaching; iv. Communication; v. Process improvement; vi. Incorporation of new control

Sheet Supply
A2: Antofagasta PLC ESG Databook
A8: » Quantitative data of Antofagasta PLC's supply chain, disaggregated by mining company, transport division and consolidated PLC.
A10: Indicators | D10: 2021 | L10: 2020 | T10: 2019 | AB10: 2018
A11: GRI | B11: Required Data | C11: Unit | D11: Corporate offices | E11: Pelambres | F11: Centinela | G11: Antucoya | H11: Zaldivar | I11: Mining Division | J11: Transport Division | K11: Antofagasta PLC | L11: Corporate offices | M11: Pelambres | N11: Centinela | O11: Antucoya | P11: Zaldivar | Q11: Mining Division | R11: Transport Division | S11: Antofagasta PLC | T11: Corporate offices | U11: Pelambres | V11: Centinela | W11: Antucoya | X11: Zaldivar | Y11: Mining Division | Z11: Transport Division | AA11: Antofagasta PLC | AB11: Corporate offices | AC11: Pelambres | AD11: Centinela | AE11: Antucoya | AF11: Zaldivar | AG11: Mining Division | AH11: Transport Division | AI11: Antofagasta PLC
A12: Economic
A13: Supply Chain
A14: Critical Tier 1 and Non-tier 1 Suppliers | B14: Critical tier 1 and non-tier 1 suppliers
B15: Total tier-1 suppliers* | C15: Number | I15: 3665 | Q15: 3739 | Y15: 3429
C16: Share of procurement spent (%) | I16: 1 | Q16: 1 | Y16: 1
B17: Critical tier 1 suppliers | C17: Number | I17: 487 | Q17: 442 | Y17: 320
B18: ii. Critical tier 1 suppliers | C18: Share of procurement spent (%) | I18: 0.23 | Q18: 0.19 | Y18: 0.294
A19: Suppliers
A20: 102-9 | B20: Suppliers | C20: Annual average | D20: 142 | E20: 561.75 | F20: 513 | G20: 268.58 | H20: 347.83 | I20: 1231.75 | J20: 943 | K20: 2183.833333 | L20: 368 | M20: 949 | N20: 1071 | O20: 554 | P20: 715 | Q20: 2214 | R20: 1036 | S20: 3250 | T20: 190.3333333 | U20: 521.6666667 | V20: 505.8333333 | W20: 259.4166667 | X20: 440.9166667 | Y20: 1246.666667 | Z20: 935 | AA20: 3842 | AB20: 280 | AC20: 640.25 | AD20: 653.8333333 | AE20: 296.8333333 | AF20: 356.6666667 | AG20: 1579.5 | AH20: 1001 | AI20: 4750
A21: 102-9 | B21: From Antofagasta or Coquimbo Regions | C21: Percentage of total | D21: 0.08070550508 | E21: 0.2220409374 | F21: 0.2128005198 | G21: 0.230878187 | H21: 0.2696385542 | I21: 0.2439892545 | J21: 0.4665959703 | K21: 0.3401129512 | L21: 0.04347826087 | M21: 0.167544784 | N21: 0.2203548086 | O21: 0.2509025271 | P21: 0.2587412587 | Q21: 0.2222222222 | R21: 0.4305019305 | S21: 0.2886153846 | T21: 0.05063291139 | U21: 0.1916072842 | V21: 0.1931034483 | W21: 0.2340425532 | X21: 0.2433795712 | Y21: 0.2305049811 | Z21: 0.2723833544 | AB21: 0.1064060803 | AC21: 0.3209944751 | AD21: 0.2054714785 | AE21: 0.2311435523 | AF21: 0.2445141066 | AG21: 0.2906428394 | AH21: 0.5774225774 | AI21: 0.3993684211
A22: 102-9 | B22: From other regions in Chile | C22: Percentage of total | D22: 0.8663816141 | E22: 0.7537822605 | F22: 0.7675438596 | G22: 0.723796034 | H22: 0.7040963855 | I22: 0.7275352586 | J22: 0.4475079533 | K22: 0.6066168053 | L22: 0.8505434783 | M22: 0.779768177 | N22: 0.7329598506 | O22: 0.7093862816 | P22: 0.7020979021 | Q22: 0.7181571816 | R22: 0.4739382239 | S22: 0.6403076923 | T22: 0.8752260398 | U22: 0.749010293 | V22: 0.7402298851 | W22: 0.6978723404 | X22: 0.683480454 | Y22: 0.69804191 | Z22: 0.4395721925 | AA22: 0.6397709526 | AB22: 0.792616721 | AC22: 0.6066298343 | AD22: 0.7118742724 | AE22: 0.695863747 | AF22: 0.6771159875 | AG22: 0.6274509804 | AH22: 0.3446553447 | AI22: 0.528
A23: 102-9 | B23: From outside Chile | C23: Percentage of total | D23: 0.05024051309 | E23: 0.0232868585 | F23: 0.01786874594 | G23: 0.04107648725 | H23: 0.02337349398 | I23: 0.02706514439 | J23: 0.07529162248 | K23: 0.04788979623 | L23: 0.1032608696 | M23: 0.05057955743 | N23: 0.0466853408 | O23: 0.03790613718 | P23: 0.03776223776 | Q23: 0.05871725384 | R23: 0.08204633205 | S23: 0.06615384615 | T23: 0.05967450271 | U23: 0.04513064133 | V23: 0.03908045977 | W23: 0.04255319149 | X23: 0.03783102144 | Y23: 0.0542768808 | Z23: 0.1048128342 | AA23: 0.06663196252 | AB23: 0.08686210641 | AC23: 0.06022099448 | AD23: 0.05878928987 | AE23: 0.04136253041 | AF23: 0.0407523511 | AG23: 0.06651774634 | AH23: 0.07792207792 | AI23: 0.07263157895
A24: Local Suppliers
A25: 102-9 | B25: Local suppliers | C25: Number of suppliers of Antofagasta or Coquimbo Regions | D25: 9.5 | E25: 124.33 | F25: 109.17 | G25: 70.17 | H25: 93.17 | I25: 300.25 | J25: 925 | K25: 1225.25 | L25: 17 | M25: 161 | N25: 236 | O25: 140 | P25: 185 | Q25: 494 | R25: 460 | S25: 954 | T25: 28 | U25: 242 | V25: 252 | W25: 165 | X25: 193 | Y25: 671 | Z25: 426 | AA25: 1097 | AB25: 98 | AC25: 581 | AD25: 353 | AE25: 190 | AF25: 234 | AG25: 1171 | AH25: 578 | AI25: 1749
A26: Purchases
A27: 204-1 | B27: Purchases | C27: Millions of US dollars, Total purchases | D27: 48.39 | E27: 1744.42 | F27: 1472.13 | G27: 323.74 | H27: 571.33 | I27: 4160 | J27: 115.9 | K27: 4275.9 | L27: 32 | M27: 779 | N27: 1057 | O27: 209 | P27: 990 | Q27: 3067 | R27: 103 | S27: 3170 | T27: 72.11094562 | U27: 1293.860479 | V27: 1135.443923 | W27: 342.2313494 | X27: 470.041068 | Y27: 3313.687765 | Z27: 119.669778 | AA27: 3433.357543 | AB27: 84.37654352 | AC27: 1210.798591 | AD27: 1121.169587 | AE27: 334.6514128 | AF27: 466.6192326 | AG27: 3217.615367 | AH27: 90.34041408 | AI27: 3307.955781
A28: 204-1 | B28: Local purchases** | C28: Millions of US dollars in purchases of goods and services, net of VAT from Antofagasta or Coquimbo Regions | D28: 1.93 | E28: 149.45 | F28: 165.37 | G28: 78.54 | H28: 118.48 | I28: 513.77 | J28: 38.2 | K28: 551.97 | L28: 0.514 | M28: 111.4 | N28: 107.093 | O28: 38.462 | P28: 110.5 | Q28: 368 | R28: 4 | S28: 372 | T28: 10.5702559 | U28: 99.43913294 | V28: 88.56605973 | W28: 48.54491714 | X28: 57.98955618 | Y28: 305.1099219 | Z28: 27.801875 | AA28: 332.9117969 | AB28: 9.858861872 | AC28: 94.36485963 | AD28: 102.0606176 | AE28: 40.51778624 | AF28: 62.11369845 | AG28: 308.9158238 | AH28: 38.70496657 | AI28: 347.6207904
A29: 204-1 | B29: Purchases from other regions in Chile | C29: Millions of US dollars | D29: 40.71 | E29: 1561.58 | F29: 1279.88 | G29: 223.69 | H29: 430.84 | I29: 3536.7 | J29: 66.2 | K29: 3602.9 | L29: 24.4 | M29: 616.1 | N29: 923 | O29: 142.6 | P29: 869 | Q29: 2575.1 | R29: 55 | S29: 2630.1 | T29: 57.63564535 | U29: 1080.974907 | V29: 858.6438794 | W29: 225.8353419 | X29: 361.2993662 | Y29: 2584.38914 | Z29: 41.229772 | AA29: 2625.618912 | AB29: 65.86283631 | AC29: 974.5203284 | AD29: 824.3609672 | AE29: 225.2374652 | AF29: 369.2777814 | AG29: 2459.259379 | AH29: 16.46677674 | AI29: 2475.726155
A30: 204-1 | B30: Purchases outside Chile | C30: Millions of US dollars | D30: 5.76 | E30: 33.38 | F30: 26.83 | G30: 21.51 | H30: 22.01 | I30: 109.49 | J30: 11.4 | K30: 120.89 | L30: 7 | M30: 51.08 | N30: 26.6 | O30: 28.8 | P30: 10 | Q30: 123.48 | R30: 16 | S30: 139.48 | T30: 3.372885723 | U30: 22.63225008 | V30: 22.71069848 | W30: 35.04643161 | X30: 15.91180789 | Y30: 99.67407379 | Z30: 50.5994 | AA30: 150.2734738 | AB30: 7.578210539 | AC30: 62.93805464 | AD30: 42.40119219 | AE30: 29.95483728 | AF30: 7.996881387 | AG30: 150.869176 | AH30: 35.16867077 | AI30: 186.0378468
A31: 204-1 | B31: Purchases from SMEs | C31: Millions of US dollars | D31: 12.18 | E31: 205.16 | F31: 81.06 | G31: 43.8 | H31: 61.14 | I31: 403.34 | J31: 36.1 | K31: 439.44 | L31: 8.8 | M31: 165.3 | N31: 63.7 | O31: 28.08 | P31: 55.8 | Q31: 321.68 | R31: 34 | S31: 355.68 | T31: 23.04166442 | U31: 139.1922718 | V31: 96.53768153 | W31: 31.3151895 | X31: 49.28998212 | Y31: 339.3767894 | Z31: 20.47655 | AA31: 359.8533394 | AB31: 29.338 | AC31: 166.715 | AD31: 145.506 | AE31: 58.879 | AF31: 68.499 | AG31: 468.937 | AH31: 21.48237639 | AI31: 490.4193764
A33: * Tier 1 suppliers: As per Dow Jones Sustainability Index (DJSI), this refers to suppliers that directly supply goods, materials or services (including intellectual property (IP) / patents) to the company.
A34: ** Local purchase are recalculated according to the current guidelines on Regional Procurement and Recuitment . Local Suppliers = Benefeciary + Regional + Community

Sheet Labour Practice
A2: Antofagasta PLC ESG Databook
A8: » Quantitative data of Antofagasta PLC's labour practices, disaggregated by mining company, transport division and consolidated PLC.
A10: Indicators | D10: 2021 | L10: 2020 | T10: 2019 | AB10: 2018
A11: GRI | B11: Required Data | C11: Unit | D11: Corporate offices | E11: Pelambres | F11: Centinela | G11: Antucoya | H11: Zaldivar | I11: Mining Division | J11: Transport Division | K11: Antofagasta PLC | L11: Corporate offices | M11: Pelambres | N11: Centinela | O11: Antucoya | P11: Zaldivar | Q11: Mining Division | R11: Transport Division | S11: Antofagasta PLC | T11: Corporate offices | U11: Pelambres | V11: Centinela | W11: Antucoya | X11: Zaldivar | Y11: Mining Division | Z11: Transport Division | AA11: Antofagasta PLC | AB11: Corporate offices | AC11: Pelambres | AD11: Centinela | AE11: Antucoya | AF11: Zaldivar | AG11: Mining Division | AH11: Transport Division | AI11: Antofagasta PLC
A12: Social
A13: Labor Practice Indicators
A14: Employees
A15: 102-8 | B15: Permanent and full-time employees | C15: Annual average | D15: 614.5 | E15: 970.5 | F15: 2226.916667 | G15: 816.25 | H15: 918.6666667 | I15: 5546.833333 | J15: 1336 | K15: 6882.833333 | L15: 577.3333333 | M15: 949.8333333 | N15: 2095.916667 | O15: 793.3333333 | P15: 908.0833333 | Q15: 5324.5 | R15: 1352 | S15: 6676.5 | T15: 514.5833333 | U15: 928 | V15: 2056.666667 | W15: 798.4166667 | X15: 887.5833333 | Y15: 5185.25 | Z15: 1406.727273 | AA15: 6591.977273 | AB15: 466.1666667 | AC15: 908.6666667 | AD15: 2051.583333 | AE15: 785.9166667 | AF15: 895.1666667 | AG15: 5107.5 | AH15: 1369.583333 | AI15: 6477.083333
A16: 102-8 | C16: Number as of December 31 | D16: 642 | E16: 914 | F16: 2341 | G16: 833 | H16: 914 | I16: 5748 | J16: 1333 | Q16: 5416 | R16: 1344 | Y16: 5237 | Z16: 1426 | AG16: 5145 | AH16: 1336
A17: 102-8 | B17: Percentage of employees | C17: Percentage of all employees and contractors | D17: 0.08296971781 | E17: 0.1475760133 | F17: 0.3106084628 | G17: 0.3839910068 | H17: 0.4991623274 | I17: 0.2208289361 | J17: 0.7132941805 | K17: 0.255002525 | L17: 0.1572604736 | M17: 0.1475892408 | N17: 0.3011326599 | O17: 0.414364214 | P17: 0.3789643718 | Q17: 0.2490672556 | R17: 0.7229946524 | S17: 0.28718896 | T17: 0.167970992 | U17: 0.1381284857 | V17: 0.2386900289 | W17: 0.3833725481 | X17: 0.3370837047 | Y17: 0.224332573 | Z17: 0.700307748 | AA17: 0.2623897369 | AB17: 0.09127100669 | AC17: 0.1779083048 | AD17: 0.4016805352 | AE17: 0.1538750204 | AF17: 0.175265133 | AG17: 0.2627 | AH17: 0.6866513474 | AI17: 0.3021672647
A18: 102-8 | B18: Men | C18: Annual average | D18: 411.0833333 | E18: 825.25 | F18: 1879 | G18: 733.5833333 | H18: 833 | I18: 4681.916667 | J18: 1146 | K18: 5827.916667 | L18: 402.9166667 | M18: 849.5833333 | N18: 1864.666667 | O18: 724.25 | P18: 851.25 | Q18: 4692.666667 | R18: 1198 | S18: 5890.666667 | T18: 364.3333333 | U18: 850.1666667 | V18: 1893.416667 | W18: 745.25 | X18: 844.8333333 | Y18: 4698 | Z18: 1264.454545 | AA18: 5962.454545 | AB18: 341.9166667 | AC18: 843.8333333 | AD18: 1880.916667 | AE18: 743.9166667 | AF18: 859.0833333 | AG18: 4669.666667 | AH18: 1251.083333 | AI18: 5920.75
A19: 102-8 | C19: Number as of December 31 | D19: 428 | E19: 840 | F19: 1928 | G19: 740 | H19: 814 | I19: 4750
A20: 102-8 | B20: Porcentage of men | C20: Percentage of all employees | D20: 0.668972064 | E20: 0.8503348789 | F20: 0.8437675411 | G20: 0.8987238387 | H20: 0.9067489115 | I20: 0.8440701902 | J20: 0.8577844311 | K20: 0.8467322082 | L20: 0.6978926097 | M20: 0.8944551676 | N20: 0.8896664149 | O20: 0.9129201681 | P20: 0.9374139671 | Q20: 0.8813347106 | R20: 0.8860946746 | S20: 0.8822986096 | T20: 0.7080161943 | U20: 0.9161278736 | V20: 0.920623987 | W20: 0.9334098737 | X20: 0.9518355084 | Y20: 0.9060315317 | Z20: 0.8988626082 | AA20: 0.9045016842 | AB20: 0.7334644262 | AC20: 0.9286500367 | AD20: 0.9168122182 | AE20: 0.9465592196 | AF20: 0.9596909328 | AG20: 0.9142763909 | AH20: 0.913477335 | AI20: 0.91410743
A21: 102-8 | C21: Percentage of all employees as of December 31 | D21: 0.6635658915 | E21: 0.8251473477 | F21: 0.8232280102 | G21: 0.8883553421 | H21: 0.8905908096 | I21: 0.8257997218
A22: 102-8 | B22: Women | C22: Annual average | D22: 203.4166667 | E22: 145.25 | F22: 347.9166667 | G22: 82.66666667 | H22: 85.66666667 | I22: 864.9166667 | J22: 190 | K22: 1054.916667 | L22: 174.4166667 | M22: 100.25 | N22: 231.25 | O22: 69.08333333 | P22: 56.83333333 | Q22: 631.8333333 | R22: 154 | S22: 785.8333333 | T22: 150.25 | U22: 77.83333333 | V22: 163.25 | W22: 53.16666667 | X22: 42.75 | Y22: 487.25 | Z22: 142.2727273 | AA22: 629.5227273 | AB22: 124.25 | AC22: 64.83333333 | AD22: 170.6666667 | AE22: 42 | AF22: 36.08333333 | AG22: 437.8333333 | AH22: 118.5 | AI22: 556.3333333
A23: 102-8 | C23: Number as of December 31 | D23: 217 | E23: 178 | F23: 414 | G23: 93 | H23: 100 | I23: 1002 | J23: 219 | K23: 1221 | Q23: 789 | R23: 183 | S23: 981 | Y23: 532 | Z23: 158 | AG23: 453 | AH23: 120
A24: 102-8 | B24: Porcentage of women | C24: Percentage of all employees | D24: 0.331027936 | E24: 0.1496651211 | F24: 0.1562324589 | G24: 0.1012761613 | H24: 0.09325108853 | I24: 0.1559298098 | J24: 0.1422155689 | K24: 0.1532677918 | L24: 0.3021073903 | M24: 0.1055448324 | N24: 0.1103335851 | O24: 0.08707983193 | P24: 0.06258603285 | Q24: 0.1186652894 | R24: 0.1139053254 | S24: 0.1177013904 | T24: 0.2919838057 | U24: 0.08387212644 | V24: 0.07937601297 | W24: 0.06659012629 | X24: 0.0481644916 | Y24: 0.09396846825 | Z24: 0.1011373918 | AA24: 0.09549831579 | AB24: 0.2665355738 | AC24: 0.07134996332 | AD24: 0.08318778179 | AE24: 0.05344078041 | AF24: 0.04030906721 | AG24: 0.08572360907 | AH24: 0.08652266504 | AI24: 0.08589256996
A25: 102-8 | C25: Percentage of all employees as of December 31 | D25: 0.338 | E25: 0.175 | F25: 0.177 | G25: 0.112 | H25: 0.109 | I25: 0.174 | J25: 0.164 | K25: 0.17 | Q25: 0.1473412112 | R25: 0.1361607143 | S25: 0.1469332734 | Y25: 0.102 | Z25: 0.11 | AG25: 0.088 | AH25: 0.09
A26: Workforce According to Role and Gender
A27: 405-1 | B27: Operators | C27: Annual average | D27: 4.25 | E27: 559.4166667 | F27: 1660 | G27: 591.8333333 | H27: 653.4166667 | I27: 3468.916667 | J27: 1002 | K27: 4470.916667 | L27: 7.75 | M27: 547.0833333 | N27: 1577.166667 | O27: 589.5 | P27: 665.0833333 | Q27: 3386.583333 | R27: 1006 | S27: 4392.583333 | T27: 8.083333333 | U27: 538.0833333 | V27: 1510.75 | W27: 604.9166667 | X27: 652.25 | Y27: 3314.083333 | Z27: 1049 | AB27: 9.333333333 | AC27: 555.5833333 | AD27: 1529.333333 | AE27: 593.8333333 | AF27: 659.75 | AG27: 3347.833333 | AH27: 1046.75 | AI27: 4394.583333
A28: 405-1 | B28: Men | C28: Percentage of men | D28: 0.7647058824 | E28: 0.8690600328 | F28: 0.8638554217 | G28: 0.9398760912 | H28: 0.9428644306 | I28: 0.8924255892 | J28: 0.8992015968 | K28: 0.8939441949 | L28: 0.8709677419 | M28: 0.9195734958 | N28: 0.906319349 | O28: 0.9474130619 | P28: 0.9713068538 | Q28: 0.9282954797 | R28: 0.9343936382 | S28: 0.9296920946 | T28: 0.8659793814 | U28: 0.939445563 | V28: 0.9334215897 | W28: 0.9555035129 | X28: 0.9824964865 | Y28: 0.9479242626 | Z28: 0.9399428027 | AB28: 0.8303571429 | AC28: 0.9470526474 | AD28: 0.9305252833 | AE28: 0.9653381981 | AF28: 0.9891372995 | AG28: 0.9507143924 | AH28: 0.9610699785 | AI28: 0.9531809993
A29: 405-1 | B29: Women | C29: Percentage of women | D29: 0.2352941176 | E29: 0.1309399672 | F29: 0.1361445783 | G29: 0.06012390876 | H29: 0.05713556944 | I29: 0.1075744108 | J29: 0.1007984032 | K29: 0.1060558051 | L29: 0.1290322581 | M29: 0.08042650419 | N29: 0.09368065096 | O29: 0.05258693808 | P29: 0.02869314622 | Q29: 0.07170452029 | R29: 0.06560636183 | S29: 0.07030790537 | T29: 0.1340206186 | U29: 0.06055443705 | V29: 0.06657841028 | W29: 0.04449648712 | X29: 0.01750351348 | Y29: 0.05207573738 | Z29: 0.06005719733 | AB29: 0.1696428571 | AC29: 0.05294735263 | AD29: 0.06947471665 | AE29: 0.03466180185 | AF29: 0.01086270052 | AG29: 0.04928560761 | AH29: 0.0389300215 | AI29: 0.04681900066
A30: 405-1 | B30: Supervisors | C30: Annual average | D30: 488.1666667 | E30: 347.6666667 | F30: 501.8333333 | G30: 192.75 | H30: 234 | I30: 1764.416667 | J30: 301 | K30: 2065.416667 | L30: 452.0833333 | M30: 342.25 | N30: 460.5 | O30: 173.75 | P30: 214.0833333 | Q30: 1642.666667 | R30: 311 | S30: 1953.666667 | T30: 395.8333333 | U30: 338.25 | V30: 489.5833333 | W30: 165.6666667 | X30: 206.5 | Y30: 1595.833333 | Z30: 336 | AB30: 353 | AC30: 300.25 | AD30: 467.6666667 | AE30: 163.75 | AF30: 206.5 | AG30: 1491.166667 | AH30: 280.4166667 | AI30: 1771.583333
A31: 405-1 | B31: Men | C31: Percentage of men | D31: 0.6379310345 | E31: 0.8120805369 | F31: 0.7758219861 | G31: 0.7708603545 | H31: 0.8144586895 | I31: 0.749397818 | J31: 0.7375415282 | K31: 0.7476699617 | L31: 0.6621198157 | M31: 0.8522035549 | N31: 0.8351429606 | O31: 0.7908872902 | P31: 0.824834566 | Q31: 0.785054789 | R31: 0.7363344051 | S31: 0.7772990957 | T31: 0.6692631579 | U31: 0.874353289 | V31: 0.8794893617 | W31: 0.8485915493 | X31: 0.8482647296 | Y31: 0.8190078329 | Z31: 0.7351190476 | AB31: 0.6947592068 | AC31: 0.8878712184 | AD31: 0.8711689237 | AE31: 0.8824427481 | AF31: 0.8599677159 | AG31: 0.8324578071 | AH31: 0.7346210996 | AI31: 0.8169716355
A32: 405-1 | B32: Women | C32: Percentage of women | D32: 0.3620689655 | E32: 0.1879194631 | F32: 0.2241780139 | G32: 0.2291396455 | H32: 0.1855413105 | I32: 0.250602182 | J32: 0.2624584718 | K32: 0.2523300383 | L32: 0.3378801843 | M32: 0.1477964451 | N32: 0.1648570394 | O32: 0.2091127098 | P32: 0.175165434 | Q32: 0.214945211 | R32: 0.2636655949 | S32: 0.2227009043 | T32: 0.3307368421 | U32: 0.125646711 | V32: 0.1205106383 | W32: 0.1514084507 | X32: 0.1517352704 | Y32: 0.1809921671 | Z32: 0.2648809524 | AB32: 0.3052407932 | AC32: 0.1121287816 | AD32: 0.1288310763 | AE32: 0.1175572519 | AF32: 0.1400322841 | AG32: 0.1675421929 | AH32: 0.2653789004 | AI32: 0.1830283645
A33: 405-1 | B33: Executives | C33: Annual average | D33: 122.0833333 | E33: 63.41666667 | F33: 65.08333333 | G33: 31.66666667 | H33: 31.25 | I33: 313.5 | J33: 33 | K33: 346.5 | L33: 117.5 | M33: 60.5 | N33: 58.25 | O33: 30.08333333 | P33: 28.91666667 | Q33: 295.25 | R33: 35 | S33: 330.25 | T33: 110.6666667 | U33: 51.66666667 | V33: 56.33333333 | W33: 27.83333333 | X33: 28.83333333 | Y33: 275.3333333 | Z33: 41 | AB33: 103.8333333 | AC33: 52.83333333 | AD33: 54.58333333 | AE33: 28.33333333 | AF33: 28.91666667 | AG33: 268.5 | AH33: 42.91666667 | AI33: 311.4166667
A34: 405-1 | B34: Men | C34: Percentage of men | D34: 0.7836177474 | E34: 0.8948751643 | F34: 0.8553137004 | G34: 0.9078947368 | H34: 0.8426666667 | I34: 0.8394471026 | J34: 0.696969697 | K34: 0.8258778259 | L34: 0.8241134752 | M34: 0.9063360882 | N34: 0.86981402 | O34: 0.9418282548 | P34: 0.9913544669 | Q34: 0.8783516794 | R34: 0.8285714286 | S34: 0.8730759526 | T34: 0.8350903614 | U34: 0.9467741935 | V34: 0.9349112426 | W34: 0.9580838323 | X34: 1 | Y34: 0.9061743341 | Z34: 0.8780487805 | AB34: 0.8563402889 | AC34: 0.9668769716 | AD34: 0.9236641221 | AE34: 0.9235294118 | AF34: 1 | AG34: 0.9143389199 | AH34: 0.9223300971 | AI34: 0.9154401927
A35: 405-1 | B35: Women | C35: Percentage of women | D35: 0.2163822526 | E35: 0.1051248357 | F35: 0.1446862996 | G35: 0.09210526316 | H35: 0.1573333333 | I35: 0.1605528974 | J35: 0.303030303 | K35: 0.1741221741 | L35: 0.1758865248 | M35: 0.09366391185 | N35: 0.13018598 | O35: 0.05817174515 | P35: 0.008645533141 | Q35: 0.1216483206 | R35: 0.1714285714 | S35: 0.1269240474 | T35: 0.1649096386 | U35: 0.05322580645 | V35: 0.0650887574 | W35: 0.04191616766 | X35: 0 | Y35: 0.09382566586 | Z35: 0.1219512195 | AB35: 0.1436597111 | AC35: 0.03312302839 | AD35: 0.07633587786 | AE35: 0.07647058824 | AF35: 0 | AG35: 0.08566108007 | AH35: 0.07766990291 | AI35: 0.08455980733
A36: Local Employment
A37: 203-2 | B37: Local workers | C37: Annual average of own employees from Antofagasta or Coquimbo Regions | E37: 561.1666667 | F37: 842.9166667 | G37: 376.25 | H37: 408 | I37: 2188 | J37: 1156 | M37: 543.5 | N37: 798.5 | O37: 391.25 | P37: 411.1666667 | Q37: 2144.416667 | R37: 1191 | S37: 3335.416667 | U37: 535.5 | V37: 814.1666667 | W37: 405.3333333 | X37: 402.6666667 | Y37: 2157.666667 | Z37: 1230.583333 | AA37: 3388.25 | AC37: 545.5833333 | AD37: 849.6666667 | AE37: 412.1666667 | AF37: 419.0833333 | AG37: 2226.5 | AH37: 1259.5 | AI37: 3486
C38: Percentage of own employees from Antofagasta or Coquimbo Regions | E38: 0.578224283 | F38: 0.3785128915 | G38: 0.460949464 | H38: 0.4441219158 | I38: 0.39 | J38: 0.87 | M38: 0.5722056501 | N38: 0.3809788875 | O38: 0.4931722689 | P38: 0.4527851702 | Q38: 0.4027451717 | R38: 0.8809171598 | S38: 0.499575626 | U38: 0.5770474138 | V38: 0.3958670989 | W38: 0.507671433 | X38: 0.4536663224 | Y38: 0.4161162271 | Z38: 0.8747845849 | AA38: 0.5139960075 | AC38: 0.6004218635 | AD38: 0.4141516715 | AE38: 0.5244406744 | AF38: 0.4681623534 | AG38: 0.4359275575 | AH38: 0.9196227563 | AI38: 0.5382052107
A39: 202-2 | B39: Local supervisors | C39: Annual average of own supervisors that declare residence in Antofagasta or Coquimbo Regions | E39: 31.08333333 | F39: 68.41666667 | G39: 31.75 | H39: 48 | I39: 179 | J39: 82 | M39: 45.75 | N39: 82.16666667 | O39: 28.91666667 | P39: 48.08333333 | Q39: 204.9166667 | R39: 124 | S39: 328.9166667 | U39: 41.41666667 | V39: 90.58333333 | W39: 33.58333333 | X39: 50.91666667 | Y39: 216.5 | Z39: 225 | AA39: 441.5 | AC39: 38.16666667 | AD39: 84.58333333 | AE39: 38.25 | AF39: 55.08333333 | AG39: 216.0833333 | AH39: 207.0833333 | AI39: 423.1666667
C40: Percentage of own employees from Antofagasta or Coquimbo Regions | E40: =E39/(E30+E27+E33) -> 0.03202816418 | F40: =F39/(F30+F27+F33) -> 0.03072259851 | G40: 0.03889739663 | H40: 0.05224963716
A41: Freedom of Association
A42: 405-1 | B42: Union membership | C42: Annual average of unionised employees | D42: 0 | E42: 774.5 | F42: 1954.083333 | G42: 675.25 | H42: 799.0833333 | I42: 4202.916667 | J42: 1129 | K42: 5331.916667 | L42: 0 | M42: 787.4166667 | N42: 1896.5 | O42: 677.0833333 | P42: 789.0833333 | Q42: 4150.083333 | R42: 914 | S42: 5064.083333 | T42: 0 | U42: 792.8333333 | V42: 1871.333333 | W42: 577.8333333 | X42: 785 | Y42: 4027 | Z42: 841.6666667 | AA42: 4868.666667 | AB42: 0 | AC42: 724.25 | AD42: 1856.583333 | AE42: 547.8333333 | AF42: 754.8333333 | AG42: 3883.5 | AH42: 728.4166667 | AI42: 4611.916667
A43: 405-1 | B43: Percentage of employees represented by an independent trade union or covered by collective bargaining agreements | C43: Percentage of unionised employees | D43: 0 | E43: 0.7980422463 | F43: 0.8774838154 | G43: 0.8272588055 | H43: 0.869829463 | I43: 0.81 | J43: 0.85 | K43: 0.7746688621 | L43: 0 | M43: 0.8290050886 | N43: 0.9048546777 | O43: 0.8534663866 | P43: 0.8689547582 | Q43: 0.7794315585 | R43: 0.676035503 | S43: 0.7584937218 | T43: 0 | U43: 0.8543462644 | V43: 0.9098865478 | W43: 0.7237240372 | X43: 0.8844239977 | Y43: 0.7766260065 | Z43: 0.5983154539 | AA43: 0.7385745529 | AB43: 0 | AC43: 0.7970469552 | AD43: 0.9049514603 | AE43: 0.6970628777 | AF43: 0.8432321728 | AG43: 0.7603524229 | AH43: 0.5318527533 | AI43: 0.7120360244
A44: Diversity & Inclusion
A45: 102-8 | B45: Other Nationalities | C45: Percentage of all employees | D45: 0.06976744186 | E45: 0.007858546169 | F45: 0.007258753202 | G45: 0.01080432173 | H45: 0.00875273523 | I45: 0.01512517385 | J45: 0.1160179641 | L45: 0.04777713626 | M45: 0.00886120372 | N45: 0.003061508489 | O45: 0.01144957983 | P45: 0.0101862898 | Q45: 0.01140952202 | R45: 0.1035502959 | S45: 0.03006814948 | Y45: 0.011 | Z45: 0.1 | AG45: 0.01 | AH45: 0.11
A46: 102-8 | B46: Disabilities | C46: Percentage of all employees | D46: 0.01085271318 | E46: 0.01277013752 | F46: 0.01195559351 | G46: 0.01320528211 | H46: 0.01094091904 | I46: 0.01199582754 | J46: 0.011 | L46: 0.0101039261 | M46: 0.009914020004 | N46: 0.007276052642 | O46: 0.008298319328 | P46: 0.009727447921 | Q46: 0.012 | R46: 0.01035502959 | S46: 0.008974262962 | Y46: 0.005 | Z46: 0.01 | AG46: 0.001
A47: Performance Evaluation
A48: 404-3 | B48: Employees with performance evaluation* | C48: Percentage of all employees | D48: 0.9333333333 | E48: 0.39 | F48: 0.842442357 | G48: 0.8739495798 | H48: 0.8566739606 | I48: 0.78 | J48: 0.22 | Q48: 0.3337402573 | R48: 0.22 | Y48: 0.3438599875 | Z48: 0.21 | AG48: 0.3314733235 | AH48: 0.2
A49: Contractors
A50: 102-9 | B50: Contractors | C50: Annual average | I50: 19571.40267 | J50: 537 | Q50: 16053.25994 | R50: 518 | Y50: 17928.86995 | Z50: 602 | AG50: 14333.34032 | AH50: 625
A51: 102-9 | B51: Percentage of contrators | C51: Percentage of all employees and contractors | I51: 0.7791710639 | J51: 0.2867 | Q51: 0.75 | R51: 0.277 | Y51: 0.775667427 | Z51: 0.2996 | AG51: 0.737279875 | AH51: 0.31
A52: Human Capital Development
A53: Training and Development Inputs
A54: 404-1 | B54: Hours of training | C54: Total hours | D54: 17930 | E54: 16044 | F54: 152653 | G54: 22765 | H54: 31701 | I54: 241093 | J54: 63688 | K54: 304781 | L54: 10118 | M54: 6,855** | N54: 103738 | O54: 12487 | P54: 22773 | Q54: 155971 | R54: 38293 | S54: 194264 | T54: 17216 | U54: 31033 | V54: 138299 | W54: 30226 | X54: 36784 | Y54: 253558 | Z54: 33790 | AA54: 287348 | AB54: 23505 | AC54: 45595 | AD54: 109000 | AE54: 36590 | AF54: 44626 | AG54: 259316 | AH54: 25405 | AI54: 284721
A55: 404-1 | B55: Hours of training per employee | C55: Hours / employee | D55: 29.17819365 | E55: 16.5316847 | F55: 68.54904015 | G55: 27.88973966 | H55: 34.50761974 | I55: 43.46498002 | J55: 48.1 | K55: 44.28132794 | L55: 26.42 | M55: 9.08 | N55: 45.13 | O55: 15.53 | P55: 26.18 | Q55: 30.52 | R55: 12.00694926 | S55: 29.09668239 | T55: 33.45619433 | U55: 33.44073276 | V55: 67.24424635 | W55: 37.85742616 | X55: 41.44286921 | Y55: 48.89986018 | Z55: 24.0202921 | AA55: 43.59056291 | AB55: 50.42188059 | AC55: 50.17791636 | AD55: 53.12969658 | AE55: 46.55709893 | AF55: 49.85216906 | AG55: 50.77161038 | AH55: 18.54943718 | AI55: 43.95821164
A56: 404-1 | B56: Amount spent on training | C56: Thousands of US dollars | D56: 140.663 | E56: 371.603 | F56: 489.283 | G56: 194.283 | H56: 314.725 | I56: 1510.6 | J56: 186.68536 | K56: 1697.24236 | L56: 134.207 | M56: 200** | N56: 472.741 | O56: 56.921 | P56: 300.889 | Q56: 1165.07 | R56: 43.16851604 | S56: 1208.238516 | T56: 177.3630018 | U56: 444.8853537 | V56: 1518.899228 | W56: 474.0972528 | X56: 566.540711 | Y56: 3181.785547 | Z56: 126.2336566 | AA56: 3308.019204 | AB56: 360.0291806 | AC56: 712.3905919 | AD56: 2041.112419 | AE56: 982.7649742 | AF56: 537.363579 | AG56: 4633.660745 | AH56: 156.0673333 | AI56: 4789.728078
A57: 404-1 | B57: Amount spent per employee | C57: US dollars/employee | D57: 228.906428 | E57: 382.8985059 | F57: 219.7132059 | G57: 238.0189893 | H57: 342.588897 | I57: 272.3 | J57: 141 | L57: 350 | M57: 265 | N57: 206 | O57: 71 | P57: 346 | Q57: 228 | R57: 48.54500485 | S57: 180.9688484 | T57: 344.6730399 | U57: 479.4023208 | V57: 738.5247461 | W57: 593.7967888 | X57: 638.2957968 | Y57: 613.6223995 | Z57: 89.73570005 | AA57: 501.8250317 | AB57: 772.3185856 | AC57: 783.9955157 | AD57: 994.8961791 | AE57: 1250.469695 | AF57: 600.2944469 | AG57: 907.2267734 | AH57: 113.9524186 | AI57: 739.4884135
A58: 404-1 | B58: Average hours per FTE of training and development | C58: Hours / person | D58: 39.93318486 | E58: 18.10835214 | F58: 65.125 | G58: 26.8138987 | H58: 35.69932432 | I58: 45 | K58: 43.46 | S58: 23 | AA58: 44 | AI58: 44
A59: 404-1 | B59: Average amount spent per FTE on training and development | C59: US dollars | D59: 310.1050431 | E59: 415.1642944 | F59: 206.6222106 | G59: 226.5172185 | H59: 350.8273534 | I59: 277.2048571 | K59: 272.3 | S59: 179 | AA59: 58 | AI59: 739
A60: Total Hours of Training by Gender
A61: 404-1 | B61: Women | C61: Total hours of training by gender | D61: 1816 | E61: 369 | F61: 72812 | G61: 791 | H61: 134 | I61: 75922
A62: 404-1 | B62: Men | C62: Total hours of training by gender | D62: 16114 | E62: 15675 | F62: 79841 | G62: 21974 | H62: 31567 | I62: 165171
A63: Total Hours of Training by Role
A64: 404-1 | B64: Supervisors | C64: Total hours of training by role | D64: 15227 | E64: 4713 | F64: 24468 | G64: 5289 | H64: 6936 | I64: 56633
A65: 404-1 | B65: Executives | C65: Total hours of training by role | D65: 2665 | E65: 1038 | F65: 2346 | G65: 1348 | H65: 143 | I65: 7540
A66: 404-1 | B66: Operators | C66: Total hours of training by role | D66: 4 | E66: 9468 | F66: 125823 | G66: 16127 | H66: 24622 | I66: 176044
A68: FTE: Full time equivalent
A69: * Indicator correspond to either perfomance evaluations or competencies assessment according to the operating company policies.
A70: ** Reduction in hours of training and amount spent was due to the pandemic.
A73: Indicators | D73: 2021 | J73: 2020 | K73: 2019 | L73: 2018
A74: GRI | B74: Required Data | C74: Unit | D74: Corporate offices | E74: Pelambres | F74: Centinela | G74: Antucoya | H74: Zaldivar | I74: Mining Division | J74: Mining Division | K74: Mining Division | L74: Mining Division
A75: Talent Attraction & Retention
A76: Hiring
B77: Total number of new employee hires | C77: Number of people | D77: 97 | E77: 138 | F77: 374 | G77: 167 | H77: 129 | I77: 905 | J77: 718 | K77: 647 | L77: 663
B78: Percentage of open positions filled by internal candidates (internal hires) | C78: Percentage | D78: 0.3401360544 | E78: 0.5 | F78: 0.2594059406 | G78: 0.1117021277 | H78: 0.5656565657 | I78: 0.3595187544 | J78: 0.59 | K78: 0.53 | L78: 0.62
B79: Average hiring cost/FTE | C79: Hiring cost in USD/number of employees hired | I79: 1900 | J79: 3616 | K79: 3478 | L79: 1223.88
A84: Indicators | D84: 2021 | K84: 2020 | M84: 2019 | O84: 2018
A85: GRI | B85: Required Data | C85: Unit | D85: Corporate offices | E85: Pelambres | F85: Centinela | G85: Antucoya | H85: Zaldivar | I85: Mining Division | J85: Transport Division | K85: Mining Division | L85: Transport Division | M85: Mining Division | N85: Transport Division | O85: Mining Division | P85: Transport Division
A86: Employee Turnover Rate
A87: 404-1 | B87: Total employee turnover rate | C87: Percentage | D87: 0.099 | E87: 0.094 | F87: 0.088 | G87: 0.134 | H87: 0.175 | I87: 0.112 | J87: 0.0921 | K87: 0.103 | L87: 0.03920118343 | M87: 0.1101 | O87: 0.096 | P87: 0.08688773958
B88: Voluntary employee turnover rate | C88: Percentage | D88: 0.029 | E88: 0.035 | F88: 0.031 | G88: 0.054 | H88: 0.076 | I88: 0.042 | K88: 0.022 | M88: 0.0301 | O88: 0.0263
A89: Trend of Employee Engagement
B90: Employee engagement | C90: Percentage of actively engaged employees | D90: 0.78 | G90: 0.71 | I90: 0.74 | O90: 0.82
A95: Indicators | D95: 2021 | J95: 2020 | K95: 2019 | L95: 2018
A96: GRI | B96: Required Data | C96: Unit | D96: Corporate offices | E96: Pelambres | F96: Centinela | G96: Antucoya | H96: Zaldivar | I96: Mining Division | J96: Mining Division | K96: Mining Division | L96: Mining Division
A97: Workforce Breakdown: Gender
A98: 102-8 405-1 | B98: Share of women in total workforce | C98: Percentage of total workforce | D98: 0.3364341085 | E98: 0.1748526523 | F98: 0.1767719898 | G98: 0.1116446579 | H98: 0.1094091904 | I98: 0.1742002782 | J98: 0.147 | K98: 0.1 | L98: 0.09
A99: 405-1 | B99: Share of women in all management positions, including junior, middle and top management | C99: Percentage of total management positions | D99: 0.2340425532 | E99: 0.125 | F99: 0.1492537313 | G99: 0.1515151515 | H99: 0.2352941176 | I99: 0.2264150943 | J99: 0.201 | K99: 0.17 | L99: 0.17
A100: 405-1 | B100: Share of women in junior management positions, i.e. first level of management | C100: Percentage of total junior management positions | D100: 0.3015873016 | E100: 0.1086956522 | F100: 0.1818181818 | G100: 0.2 | H100: 0.2857142857 | I100: 0.2597402597 | J100: 0.268 | K100: 0.25 | L100: 0.18
A101: 405-1 | B101: Share of women in top management positions, i.e. maximum two levels away from the CEO or comparable positions | C101: Percentage of total top management positions | D101: 0.1 | E101: 0 | F101: 0 | G101: 0 | H101: 0 | I101: 0.09090909091 | J101: 0.12 | K101: 0.15 | L101: 0.08
A106: Indicators | D106: 2021
A107: GRI | B107: Required Data | C107: Unit | D107: Corporate offices | E107: Pelambres | F107: Centinela | G107: Antucoya | H107: Zaldivar | I107: Mining Division
A108: Workforce Breakdown: Race / Ethnicity & Nationality
B109: Chilean | C109: Percentage of total workforce | D109: 0.9302325581 | E109: 0.9921414538 | F109: 0.9927412468 | G109: 0.9891956783 | H109: 0.9912472648 | I109: 0.9848748261
B110: Peruvian | C110: Percentage of total workforce | D110: 0.01240310078 | E110: 0.003929273084 | F110: 0.0004269854825 | G110: 0.003601440576 | H110: 0.002188183807 | I110: 0.003129346314
B111: Venezuela | C111: Percentage of total workforce | D111: 0.009302325581 | E111: 0.0009823182711 | F111: 0.001280956447 | G111: 0 | H111: 0 | I111: 0.00173852573
B112: Bolivian | C112: Percentage of total workforce | D112: 0 | E112: 0 | F112: 0.00170794193 | G112: 0 | H112: 0.005470459519 | I112: 0.001564673157
B113: Brazilean | C113: Percentage of total workforce | D113: 0.01085271318 | E113: 0 | F113: 0.0004269854825 | G113: 0 | H113: 0 | I113: 0.001390820584
B114: Argentinean | C114: Percentage of total workforce | D114: 0.007751937984 | E114: 0 | F114: 0.0004269854825 | G114: 0.001200480192 | H114: 0 | I114: 0.001216968011
B115: Colombian | C115: Percentage of total workforce | D115: 0.003100775194 | E115: 0 | F115: 0.001280956447 | G115: 0.001200480192 | H115: 0 | I115: 0.001043115438
B116: Other | C116: Percentage of total workforce | D116: 0.02635658915 | E116: 0.002946954813 | F116: 0.00170794193 | G116: 0.004801920768 | H116: 0.001094091904 | I116: 0.005041724618
A117: Share in all Management Positions, Including Junior, Middle and Senior Management
B118: Chilean | C118: Percentage of total management workforce | D118: 0.9141104294 | E118: 0.9692307692 | F118: 0.9850746269 | G118: 0.9411764706 | H118: 1 | I118: 0.9476584022
B119: Peruvian | C119: Percentage of total management workforce | D119: 0.01226993865 | E119: 0.01538461538 | F119: 0 | G119: 0.02941176471 | H119: 0 | I119: 0.01101928375
B120: Venezuela | C120: Percentage of total workforce | D120: 0.006134969325 | E120: 0 | F120: 0 | G120: 0 | H120: 0 | I120: 0.002754820937
B121: Bolivian | C121: Percentage of total management workforce | D121: 0 | E121: 0 | F121: 0 | G121: 0 | H121: 0 | I121: 0
B122: Brazilean | C122: Percentage of total management workforce | D122: 0.006134969325 | E122: 0 | F122: 0 | G122: 0 | H122: 0 | I122: 0.002754820937
B123: Argentinean | C123: Percentage of total management workforce | D123: 0.006134969325 | E123: 0 | F123: 0 | G123: 0 | H123: 0 | I123: 0.002754820937
B124: Colombian | C124: Percentage of total management workforce | D124: 0.006134969325 | E124: 0 | F124: 0 | G124: 0.02941176471 | H124: 0 | I124: 0.005509641873
B125: Others | C125: Percentage of total management workforce | D125: 0.0490797546 | E125: 0.01538461538 | F125: 0.01492537313 | G125: 0 | H125: 0 | I125: 0.02754820937

Sheet Health and Safety
A2: Antofagasta PLC ESG Databook
A8: » Quantitative data of Antofagasta PLC's health and safety performance, disaggregated by mining company, transport division and consolidated PLC.
A10: Indicators | D10: 2021 | L10: 2020 | T10: 2019 | AB10: 2018
A11: GRI | B11: Required Data | C11: Unit | D11: Corporate offices* | E11: Pelambres | F11: Centinela | G11: Antucoya | H11: Zaldivar | I11: Mining Division | J11: Transport Division | K11: Antofagasta PLC | L11: Corporate offices* | M11: Pelambres | N11: Centinela | O11: Antucoya | P11: Zaldivar | Q11: Mining Division | R11: Transport Division | S11: Antofagasta PLC | T11: Corporate offices* | U11: Pelambres | V11: Centinela | W11: Antucoya | X11: Zaldivar | Y11: Mining Division | Z11: Transport Division | AA11: Antofagasta PLC | AB11: Corporate offices* | AC11: Pelambres | AD11: Centinela | AE11: Antucoya | AF11: Zaldivar | AG11: Mining Division | AH11: Transport Division | AI11: Antofagasta PLC
A12: Social
A13: Ocupational Health and Safety
A14: Fatalities
A15: 403-9 | B15: Total | C15: Number | D15: 0 | E15: 1 | F15: 0 | G15: 0 | H15: 0 | I15: 1 | J15: 0 | K15: 1 | L15: 0 | M15: 0 | N15: 0 | O15: 0 | P15: 0 | Q15: 0 | R15: 0 | S15: 0 | T15: 0 | U15: 0 | V15: 0 | W15: 0 | X15: 0 | Y15: 0 | Z15: 0 | AA15: 0 | AB15: 0 | AC15: 1 | AD15: 0 | AE15: 0 | AF15: 0 | AG15: 1 | AH15: 0 | AI15: 1
A16: 403-9 | B16: Employees | C16: Number | D16: 0 | E16: 0 | F16: 0 | G16: 0 | H16: 0 | I16: 0 | J16: 0 | K16: 0 | L16: 0 | M16: 0 | N16: 0 | O16: 0 | P16: 0 | Q16: 0 | R16: 0 | S16: 0 | T16: 0 | U16: 0 | V16: 0 | W16: 0 | X16: 0 | Y16: 0 | Z16: 0 | AA16: 0 | AB16: 0 | AC16: 0 | AD16: 0 | AE16: 0 | AF16: 0 | AG16: 0 | AH16: 0 | AI16: 0
A17: 403-9 | B17: Contractors | C17: Number | D17: 0 | E17: 1 | F17: 0 | G17: 0 | H17: 0 | I17: 1 | J17: 0 | K17: 1 | L17: 0 | M17: 0 | N17: 0 | O17: 0 | P17: 0 | Q17: 0 | R17: 0 | S17: 0 | T17: 0 | U17: 0 | V17: 0 | W17: 0 | X17: 0 | Y17: 0 | Z17: 0 | AA17: 0 | AB17: 0 | AC17: 1 | AD17: 0 | AE17: 0 | AF17: 0 | AG17: 1 | AH17: 0 | AI17: 1
A18: Fatality Rates
A19: 403-9 | B19: Total | C19: Number of fatalities in the year per million hours worked | D19: 0 | E19: 0.06 | F19: 0 | G19: 0 | H19: 0 | I19: 0.02036940359 | J19: 0 | K19: 0.02 | L19: 0 | M19: 0 | N19: 0 | O19: 0 | P19: 0 | Q19: 0 | R19: 0 | S19: 0 | T19: 0 | U19: 0 | V19: 0 | W19: 0 | X19: 0 | Y19: 0 | Z19: 0 | AA19: 0 | AB19: 0 | AC19: 0.06557751737 | AD19: 0 | AE19: 0 | AF19: 0 | AG19: 0.0229584613 | AH19: 0 | AI19: 0.0209841221
A20: 403-9 | B20: Employees | C20: Number of fatalities in the year per million hours worked | D20: 0 | E20: 0 | F20: 0 | G20: 0 | H20: 0 | I20: 0 | J20: 0 | K20: 0 | L20: 0 | M20: 0 | N20: 0 | O20: 0 | P20: 0 | Q20: 0 | R20: 0 | S20: 0 | T20: 0 | U20: 0 | V20: 0 | W20: 0 | X20: 0 | Y20: 0 | Z20: 0 | AA20: 0 | AB20: 0 | AC20: 0 | AD20: 0 | AE20: 0 | AF20: 0 | AG20: 0 | AH20: 0 | AI20: 0
A21: 403-9 | B21: Contractors | C21: Number of fatalities in the year per million hours worked | D21: 0 | E21: 0.07 | F21: 0 | G21: 0 | H21: 0 | I21: 0.02 | J21: 0 | K21: 0.02 | L21: 0 | M21: 0 | N21: 0 | O21: 0 | P21: 0 | Q21: 0 | R21: 0 | S21: 0 | T21: 0 | U21: 0 | V21: 0 | W21: 0 | X21: 0 | Y21: 0 | Z21: 0 | AA21: 0 | AB21: 0 | AC21: 0.07439951464 | AD21: 0 | AE21: 0 | AF21: 0 | AG21: 0.02997900903 | AH21: 0 | AI21: 0.02894539986
A22: Number of Recordable Work-related Injuries
A23: 403-9 | B23: Total | C23: Number of recordable occupational injuries | D23: 166 | E23: 58 | F23: 80 | G23: 42 | H23: 52 | I23: 398 | J23: 33 | K23: 431 | L23: 43 | M23: 66 | N23: 107 | O23: 35 | P23: 53 | Q23: 304 | R23: 33 | S23: 337 | T23: 15 | U23: 68 | V23: 105 | W23: 49 | X23: 46 | Y23: 283 | Z23: 45 | AA23: 328 | AB23: 11 | AC23: 56 | AD23: 90 | AE23: 34 | AF23: 26 | AG23: 217 | AH23: 28 | AI23: 245
A24: 403-9 | B24: Employees | C24: Number of recordable occupational injuries | D24: 0 | E24: 6 | F24: 15 | G24: 14 | H24: 8 | I24: 43 | J24: 25 | K24: 68 | L24: 1 | M24: 1 | N24: 19 | O24: 11 | P24: 16 | Q24: 48 | R24: 26 | S24: 74 | T24: 1 | U24: 3 | V24: 18 | W24: 7 | X24: 10 | Y24: 39 | Z24: 34 | AA24: 73 | AB24: 0 | AC24: 2 | AD24: 19 | AE24: 15 | AF24: 7 | AG24: 43 | AH24: 17 | AI24: 60
A25: 403-9 | B25: Contractors | C25: Number of recordable occupational injuries | D25: 166 | E25: 52 | F25: 65 | G25: 28 | H25: 44 | I25: 355 | J25: 8 | K25: 363 | L25: 42 | M25: 65 | N25: 88 | O25: 24 | P25: 37 | Q25: 256 | R25: 7 | S25: 263 | T25: 14 | U25: 65 | V25: 87 | W25: 42 | X25: 36 | Y25: 244 | Z25: 11 | AA25: 255 | AB25: 11 | AC25: 54 | AD25: 71 | AE25: 19 | AF25: 19 | AG25: 174 | AH25: 11 | AI25: 185
A26: Lost-Time Injury Frequency Rate (LTIFR)
A27: 403-9 | B27: Total | C27: Number of lost time incidents in the year per million hours worked | D27: 1.445832695 | E27: 0.7443105417 | F27: 1.071692077 | G27: 1.24088531 | H27: 1.122579238 | I27: 1.101894203 | J27: 4.600285948 | K27: 1.32672085 | L27: 0.6390660025 | M27: 0.59 | N27: 0.89 | O27: 0.45 | P27: 0.98 | Q27: 0.73 | R27: 2.37 | S27: 0.86 | T27: 0.6611536735 | U27: 0.64 | V27: 0.64 | W27: 1.72 | X27: 0.69 | Y27: 0.75 | Z27: 4.03 | AA27: 1.01 | AB27: 2.246292494 | AC27: 1.05 | AD27: 0.83 | AE27: 1.55 | AF27: 0.92 | AG27: 1.08 | AH27: 6.83 | AI27: 1.57
A28: 403-9 | B28: Employees | C28: Number of lost time incidents in the year per million hours worked | D28: 0 | E28: 1.019010199 | F28: 1.125041057 | G28: 1.224993668 | H28: 1.661461676 | I28: 1.077694746 | J28: 4.298412964 | K28: 1.723320036 | L28: 0.8163791787 | M28: 0 | N28: 0.4666257047 | O28: 0.6589324471 | P28: 1.094916685 | Q28: 0.5549294692 | R28: 2.267361429 | S28: 0.9349924323 | T28: 0.9667692409 | U28: 0 | V28: 0.48 | W28: 1.32 | X28: 0.57 | Y28: 0.58 | Z28: 4.23 | AA28: 1.41 | AB28: 0 | AC28: 0 | AD28: 1.48 | AE28: 2.53 | AF28: 1.65 | AG28: 1.27 | AH28: 5.85 | AI28: 2.29
A29: 403-9 | B29: Contractors | C29: Number of lost time incidents in the year per million hours worked | D29: 1.573383173 | E29: 0.7062339411 | F29: 1.052496331 | G29: 1.248986759 | H29: 0.9029343334 | I29: 1.107420189 | J29: 5.229930143 | K29: 1.216566154 | L29: 0.6061526311 | M29: 0.673850053 | N29: 1.041465425 | O29: 0.3400606396 | P29: 0.9316885924 | Q29: 0.7749686629 | R29: 2.635198878 | S29: 0.8275589736 | T29: 0.5709147482 | U29: 0.73 | V29: 0.68 | W29: 1.92 | X29: 0.74 | Y29: 0.79 | Z29: 3.49 | AA29: 0.87 | AB29: 3.443907641 | AC29: 1.19 | AD29: 0.6 | AE29: 1.02 | AF29: 0.55 | AG29: 1.02 | AH29: 9.24 | AI29: 1.3
A30: Total Recordable Injury Frequency Rate (TRIFR)
A31: 403-9 | B31: Total | C31: Recorded fatalities, lost time injuries, cases or alternate work and other injuries requiring medical treatment by a medical professional in the year per million hours worked | D31: 1.76 | E31: 1.43 | F31: 1.97 | G31: 4.55 | H31: 4.81 | I31: 2.27 | J31: 7.26 | K31: 2.61 | L31: 0.77 | M31: 1.89 | N31: 3.54 | O31: 5.38 | P31: 3.6 | Q31: 2.77 | R31: 7.57 | S31: 3.14 | T31: 0.66 | U31: 2.25 | V31: 2.34 | W31: 7.11 | X31: 3.26 | Y31: 2.71 | Z31: 8.53 | AA31: 3.17 | AB31: 2.25 | AC31: 2.28 | AD31: 2.81 | AE31: 5.09 | AF31: 2.93 | AG31: 3.19 | AH31: 6.83 | AI31: 3.5
A32: 403-9 | B32: Employees | C32: Recorded fatalities, lost time injuries, cases or alternate work and other injuries requiring medical treatment by a medical professional in the year per million hours worked | D32: 0 | E32: 1.53 | F32: 1.8 | G32: 4.9 | H32: 3.32 | I32: 2.25 | J32: 7.88 | K32: 3.38 | L32: 0.82 | M32: 0 | N32: 2.57 | O32: 4.61 | P32: 3.29 | Q32: 2.31 | R32: 8.1 | S32: 3.6 | T32: 0.97 | U32: 0.53 | V32: 1.93 | W32: 2.64 | X32: 1.7 | Y32: 1.64 | Z32: 8.79 | AA32: 3.28 | AB32: 0 | AC32: 1.1 | AD32: 2.95 | AE32: 6.96 | AF32: 2.75 | AG32: 2.95 | AH32: 5.85 | AI32: 3.6
A33: 403-9 | B33: Contractors | C33: Recorded fatalities, lost time injuries, cases or alternate work and other injuries requiring medical treatment by a medical professional in the year per million hours worked | D33: 1.92 | E33: 1.48 | F33: 2.02 | G33: 4.37 | H33: 5.42 | I33: 2.3 | J33: 5.98 | K33: 2.39 | L33: 0.76 | M33: 2.17 | N33: 3.91 | O33: 5.78 | P33: 3.73 | Q33: 2.89 | R33: 6.15 | S33: 2.98 | T33: 0.57 | U33: 2.49 | V33: 2.45 | W33: 9.28 | X33: 3.94 | Y33: 3 | Z33: 7.85 | AA33: 3.14 | AB33: 3.44 | AC33: 3.55 | AD33: 2.75 | AE33: 4.1 | AF33: 3.05 | AG33: 3.25 | AH33: 9.25 | AI33: 3.5
A34: Accident Frequency (lost time)
A35: 403-9 | B35: Total | C35: Number of accidents with lost time in the year | D35: 23 | E35: 12 | F35: 18 | G35: 6 | H35: 7 | I35: 66 | J35: 19 | K35: 85 | L35: 5 | M35: 9 | N35: 14 | O35: 2 | P35: 6 | Q35: 36 | R35: 10 | S35: 46 | T35: 3 | U35: 10 | V35: 12 | W35: 8 | X35: 4 | Y35: 37 | Z35: 17 | AA35: 54 | AB35: 6 | AC35: 16 | AD35: 13 | AE35: 7 | AF35: 5 | AG35: 47 | AH35: 28 | AI35: 75
A36: 403-9 | B36: Employees | C36: Number of accidents with lost time in the year of employees | D36: 0 | E36: 2 | F36: 5 | G36: 2 | H36: 3 | I36: 12 | J36: 12 | K36: 24 | L36: 1 | M36: 0 | N36: 2 | O36: 1 | P36: 2 | Q36: 6 | R36: 7 | S36: 13 | T36: 1 | U36: 0 | V36: 2 | W36: 2 | X36: 1 | Y36: 6 | Z36: 13 | AA36: 19 | AB36: 0 | AC36: 0 | AD36: 6 | AE36: 4 | AF36: 3 | AG36: 13 | AH36: 17 | AI36: 30
A37: 403-9 | B37: Contractors | C37: Number of accidents with lost time in the year of contractors | D37: 23 | E37: 10 | F37: 13 | G37: 4 | H37: 4 | I37: 54 | J37: 7 | K37: 61 | L37: 4 | M37: 9 | N37: 12 | O37: 1 | P37: 4 | Q37: 30 | R37: 3 | S37: 33 | T37: 2 | U37: 10 | V37: 10 | W37: 6 | X37: 3 | Y37: 31 | Z37: 4 | AA37: 35 | AB37: 6 | AC37: 16 | AD37: 7 | AE37: 3 | AF37: 2 | AG37: 34 | AH37: 11 | AI37: 45
A38: All Injury Frequency Rate (AIFR)
A39: 403-9 | B39: Total | C39: Number of accidents in the year with and without lost time, plus first aid, per million hours worked | D39: 10.43514032 | E39: 3.6 | F39: 4.76 | G39: 8.69 | H39: 8.34 | I39: 6.64 | J39: 7.99 | K39: 6.73 | L39: 5.495967621 | M39: 4.31 | N39: 6.77 | O39: 7.85 | P39: 8.66 | Q39: 6.14 | R39: 7.81 | S39: 6.27 | T39: 3.305768367 | U39: 4.380115939 | V39: 5.571962036 | W39: 10.55194193 | X39: 7.902104605 | Y39: 5.732051312 | Z39: 10.66496692 | AA39: 6.117841179 | AB39: 4.118202906 | AC39: 3.67 | AD39: 5.87 | AE39: 7.75 | AF39: 4.77 | AG39: 5.05 | AH39: 6.83 | AI39: 5.2
A40: 403-9 | B40: Employees | C40: Number of accidents in the year with and without lost time, plus first aid, per million hours worked | D40: 0 | E40: 3.057030598 | F40: 3.375123171 | G40: 8.574955678 | H40: 4.430564471 | I40: 3.861739506 | J40: 8.955027009 | K40: 4.882740103 | L40: 0.8163791787 | M40: 0.5110006952 | N40: 4.432944195 | O40: 7.248256918 | P40: 8.75933348 | Q40: 4.439435754 | R40: 8.421628166 | S40: 5.322264615 | T40: 0.9667692409 | U40: 1.585714824 | V40: 4.33156858 | W40: 4.611039091 | X40: 5.68062396 | Y40: 3.764381021 | Z40: 11.06424582 | AA40: 5.433440199 | AB40: 0 | AC40: 1.11 | AD40: 4.68 | AE40: 9.49 | AF40: 3.85 | AG40: 4.22 | AH40: 5.85 | AI40: 4.58
A41: 403-9 | B41: Contractors | C41: Number of accidents in the year with and without lost time, plus first aid, per million hours worked | D41: 11.35572203 | E41: 3.672416494 | F41: 5.262481655 | G41: 8.742907316 | H41: 9.932277668 | I41: 7.280262356 | J41: 5.977063021 | K41: 7.2395658 | L41: 6.364602626 | M41: 4.866694827 | N41: 7.637413118 | O41: 8.161455351 | P41: 8.61811948 | Q41: 6.613065923 | R41: 6.148797383 | S41: 6.595394244 | T41: 3.996403237 | U41: 4.767908496 | V41: 5.922875582 | W41: 13.43742431 | X41: 8.865108509 | Y41: 6.254608288 | Z41: 9.594744174 | AA41: 6.346699304 | AB41: 6.313830676 | AC41: 4.02 | AD41: 6.29 | AE41: 6.81 | AF41: 5.23 | AG41: 5.31 | AH41: 9.23 | AI41: 5.44
A42: Hours Worked
A43: 403-9 | B43: Total | C43: Number of hours worked | D43: 15907788 | E43: 16122302.89 | F43: 16795869.25 | G43: 4835257.5 | H43: 6235640 | I43: 59896857.43 | J43: 4130178.04 | K43: 64067735.12 | L43: 7823918 | M43: 15313031.6 | N43: 15808316.5 | O43: 4458258.25 | P43: 6119903 | Q43: 49523427.56 | R43: 4225723 | S43: 53780168.06 | T43: 4537523 | U43: 15524703.22 | V43: 18844349.5 | W43: 4643695 | X43: 5821234 | Y43: 49371505 | Z43: 4219422.37 | AA43: 53613683.39 | AB43: 2671068 | AC43: 15249128.67 | AD43: 15666709.99 | AE43: 4516973.133 | AF43: 5453046.067 | AG43: 43556926 | AH43: 4098153 | AI43: 47655079.18
A44: 403-9 | B44: Employees | C44: Number of hours worked | D44: 1289607 | E44: 1962688.893 | F44: 4444282.25 | G44: 1632661.5 | H44: 1805639 | I44: 11134878.45 | J44: 2791728.04 | K44: 13926606.49 | L44: 1224921 | M44: 1956944.5 | N44: 4286090.5 | O44: 1517606.25 | P44: 1826623 | Q44: 10812184.85 | R44: 3087289 | S44: 13903855.85 | T44: 1034373 | U44: 1891891.25 | V44: 4155538.5 | W44: 1518096 | X44: 1760370 | Y44: 10360269 | Z44: 3072961.37 | AA44: 13435318.57 | AB44: 928862 | AC44: 1808180.767 | AD44: 4061991.725 | AE44: 1580502.967 | AF44: 1820716.033 | AG44: 10200253.22 | AH44: 2907022 | AI44: 13107275.22
A45: 403-9 | B45: Contractors | C45: Number of hours worked | D45: 14618181 | E45: 14159614 | F45: 12351587 | G45: 3202596 | H45: 4430001 | I45: 48761978.98 | J45: 1338450 | K45: 50141128.63 | L45: 6598998 | M45: 13356087.1 | N45: 11522226 | O45: 2940652 | P45: 4293280 | Q45: 38711242.71 | R45: 1138434 | S45: 39876312.21 | T45: 3503150 | U45: 13632811.97 | V45: 14688811 | W45: 3125599 | X45: 4060864 | Y45: 39011236 | Z45: 1146461 | AA45: 40178364.82 | AB45: 1742207 | AC45: 13440947.9 | AD45: 11604718.27 | AE45: 2936470.167 | AF45: 3632330.033 | AG45: 33356672.96 | AH45: 1191131 | AI45: 34547803.96
A46: Occupational Illness
A47: 403-10 | B47: Employees | C47: Number of occupational illnesses contracted in the year | D47: 0 | E47: 2 | F47: 0 | G47: 0 | H47: 0 | I47: 2 | J47: 0 | K47: 2 | L47: 0 | M47: 0 | N47: 0 | O47: 0 | P47: 0 | Q47: 0 | R47: 0 | S47: 0 | T47: 0 | U47: 0 | V47: 1 | W47: 1 | X47: 1 | Y47: 3 | Z47: 4 | AA47: 7 | AB47: 0 | AC47: 0 | AD47: 1 | AE47: 0 | AF47: 3 | AG47: 4 | AH47: 1 | AI47: 5
A48: Occupational Illness Frequency Rate (OIFR)
A49: 403-10 | B49: Employees | C49: Number of occupational Illnesses in the year per million hours worked | D49: 0 | E49: 1.019010199 | F49: 0 | G49: 0 | H49: 0 | I49: 0.179615791 | J49: 0 | K49: 0.143610003 | L49: 0 | M49: 0 | N49: 0 | O49: 0 | P49: 0 | Q49: 0 | R49: 0 | S49: 0 | T49: 0 | U49: 0 | V49: 0.2406426989 | W49: 0.6587198702 | X49: 0.568062396 | Y49: 0.2895677709 | Z49: 1.301675979 | AA49: 0.5210148136 | AB49: 0 | AC49: 0 | AD49: 0.2461846473 | AE49: 0 | AF49: 1.647703401 | AG49: 0.3921471277 | AH49: 0.3439946447 | AI49: 0.3814675375
A50: Near Miss Rate (NMR)
A51: 403-9 | B51: Total | C51: Number of near misses and hazards reported in the year per million hours worked | D51: 180.5405 | E51: 212 | F51: 329 | G51: 666 | H51: 252 | I51: 277 | J51: 192 | K51: 272 | L51: 142.3839054 | M51: 247 | N51: 231 | O51: 501 | P51: 654 | Q51: 298 | R51: 184 | S51: 289 | T51: 115.7018929 | U51: 257 | V51: 176 | W51: 411 | X51: 520 | Y51: 259 | Z51: 187 | AA51: 253 | AB51: 77.87147313 | AC51: 242 | AD51: 138 | AE51: 176 | AF51: 323 | AG51: 198 | AH51: 205 | AI51: 198
A52: 403-9 | B52: Employees | C52: Number of near misses and hazards reported in the year per million hours worked | D52: 20.93661092 | E52: 446 | F52: 390 | G52: 1512 | H52: 348 | I52: 515 | J52: 243 | K52: 460 | L52: 14.69482522 | M52: 395 | N52: 303 | O52: 1111 | P52: 806 | Q52: 485 | R52: 178 | S52: 417 | T52: 18.36861558 | U52: 752 | V52: 229 | W52: 746 | X52: 790 | Y52: 475 | Z52: 251 | AA52: 423 | AB52: 20.45513758 | AC52: 945 | AD52: 257 | AE52: 256 | AF52: 408 | AG52: 384 | AH52: 289 | AI52: 363
A53: 403-9 | B53: Contractors | C53: Number of near misses and hazards reported in the year per million hours worked | D53: 194.6206577 | E53: 180 | F53: 307 | G53: 234 | H53: 213 | I53: 223 | J53: 87 | K53: 219 | L53: 166.0858209 | M53: 225 | N53: 204 | O53: 186 | P53: 589 | Q53: 246 | R53: 199 | S53: 245 | T53: 144.4414313 | U53: 188 | V53: 161 | W53: 248 | X53: 403 | Y53: 201 | Z53: 18 | AA53: 196 | AB53: 108.4830907 | AC53: 147 | AD53: 96 | AE53: 132 | AF53: 281 | AG53: 141 | AH53: 0 | AI53: 136
A55: * Corporate Offices includes contractors of the Projects and Developpment Vicepresidencies.

Sheet Environment
A2: Antofagasta PLC ESG Databook
A8: » Quantitative data of Antofagasta PLC's environmental performance, disaggregated by mining company, transport division and consolidated PLC.
A10: Indicators | D10: 2021 | L10: 2020 | T10: 2019 | AB10: 2018
A11: GRI | B11: Required Data | C11: Unit | D11: Corporate offices | E11: Pelambres | F11: Centinela | G11: Antucoya | H11: Zaldivar | I11: Mining Division | J11: Transport Division | K11: Antofagasta PLC | L11: Corporate offices | M11: Pelambres | N11: Centinela | O11: Antucoya | P11: Zaldivar | Q11: Mining Division | R11: Transport Division | S11: Antofagasta PLC | T11: Corporate offices | U11: Pelambres | V11: Centinela | W11: Antucoya | X11: Zaldivar | Y11: Mining Division | Z11: Transport Division | AA11: Antofagasta PLC | AB11: Corporate offices | AC11: Pelambres | AD11: Centinela | AE11: Antucoya | AF11: Zaldivar | AG11: Mining Division | AH11: Transport Division | AI11: Antofagasta PLC
A12: Environmental
A13: Environmental Management System
A14: Environmental Violations
A15: 307-1 | B15: Number of environmental fines | C15: Number of fines | E15: 4 | F15: 2 | G15: 0 | H15: 0 | I15: 6 | J15: 3 | K15: 9 | M15: 1 | N15: 1 | O15: 1 | P15: 3 | Q15: 6 | R15: 0 | S15: 6 | U15: 5 | W15: 2 | Y15: 7 | Z15: 1 | AA15: 7 | AC15: 3 | AD15: 2 | AE15: 0 | AF15: 0 | AG15: 5 | AH15: 0 | AI15: 5
A16: 307-1 | B16: Payments in environmental fines | C16: US dollars | E16: 15693 | F16: 11612 | G16: 0 | H16: 0 | I16: 27305 | J16: 58851 | K16: 86156 | M16: 6197 | N16: 11335 | O16: 3829 | P16: 35950 | Q16: 57311 | R16: 0 | S16: 57311 | U16: 10081 | V16: 0 | W16: 5555 | X16: 0 | Y16: 15636 | Z16: 5432 | AA16: 21068 | AC16: 4467 | AD16: 7806 | AE16: 0 | AF16: 0 | AG16: 12273 | AH16: 0 | AI16: 12273
A17: 306-3 | B17: Incidents with an environmental impact | C17: Number of high potential environmental incidents | E17: 0 | F17: 0 | G17: 0 | H17: 0 | I17: 0 | J17: 0 | K17: 0 | M17: 0 | N17: 0 | O17: 0 | P17: 0 | Q17: 0 | R17: 2 | S17: 2 | U17: 0 | V17: 0 | W17: 0 | X17: 0 | Y17: 0 | Z17: 0 | AA17: 0 | AC17: 0 | AD17: 0 | AE17: 0 | AF17: 0 | AG17: 0 | AI17: 0
A18: Operational Eco-Efficiency
A19: Direct Greenhouse Gas Emissions (Scope 1)
A20: 305-1 | B20: Total direct GHG emissions (Scope 1) | C20: Metric tonnes CO2 equivalents | D20: 124 | E20: 226199 | F20: 439484 | G20: 165641 | H20: 156500 | I20: 987948 | J20: 90777.68 | K20: 2066674 | L20: 108 | M20: 257801 | N20: 492496 | O20: 152577 | P20: 152340 | Q20: 1055322 | R20: 89405 | S20: 2199580 | T20: 106 | U20: 251580 | V20: 448890 | W20: 152231 | X20: 140623 | Y20: 993430 | Z20: 95588 | AA20: 2083714 | AB20: 1 | AC20: 262355 | AD20: 453898 | AE20: 168490 | AF20: 141475 | AG20: 1026219 | AH20: 98101 | AI20: 2151838
A21: Indirect Greenhouse Gas Emissions (Scope 2)
A22: 305-2 | B22: Total indirect GHG emissions (Scope 2) | C22: Metric tonnes CO2 equivalents | D22: 894 | E22: 466381 | F22: 556616 | G22: 124467 | H22: 163530 | I22: 1311888 | J22: 823 | K22: 2624599 | L22: 603 | M22: 464492 | N22: 542020 | O22: 120087 | P22: 162688 | Q22: 1289890 | R22: 858 | S22: 2580638 | T22: 825 | U22: 544900 | V22: 539300 | W22: 114337 | X22: 192862 | Y22: 1392224 | Z22: 1117.69 | AA22: 2785566 | AB22: 1189 | AC22: 523942 | AD22: 563101 | AE22: 123353 | AF22: 180109 | AG22: 1391694 | AH22: 1223.98 | AI22: 2784612
A23: GHG Emissions Intensity
A24: 305-4 | B24: CO2 emissions intensity | C24: Tonnes CO2 equivalent emissions/tonne of copper produced or transported | E24: 2.13 | F24: 3.63 | G24: 3.69 | H24: 3.64 | I24: 3 | J24: 13.7 | M24: 2.01 | N24: 4.19 | O24: 3.44 | P24: 3.27 | Q24: 3 | R24: 13.93451273 | U24: 2.19 | V24: 3.57 | W24: 3.71 | X24: 2.87 | Y24: 3.1 | Z24: 15.20090313 | AC24: 2.2 | AD24: 4.1 | AE24: 4.04 | AF24: 3.4 | AG24: 3.33 | AH24: 16.59221134
A25: Energy Consumption
A26: 302-1 | B26: Total energy consumption | C26: Giga Joules | E26: 4746888.392 | F26: 5128790.609 | G26: 1146868.733 | H26: 1512144.292 | I26: 12534692.03 | J26: 7580.052 | K26: 12542272.08 | M26: 4830789.96 | N26: 5089395.254 | O26: 1127575.544 | P26: 1532781.302 | Q26: 12580542.06 | R26: 8054.5932 | S26: 12588596.65 | U26: 4836387.6 | V26: 4786689.6 | W26: 1014822 | X26: 1711789.2 | Y26: 12349688.4 | Z26: 9920.3688 | AA26: 12359608.77 | AC26: 4487676.539 | AD26: 4841564.288 | AE26: 1060596 | AF26: 1548586.8 | AG26: 11938423.63 | AH26: 10523.8404 | AI26: 11948947.47
C27: MWh | E27: 1318580.109 | F27: 1424664.058 | G27: 318574.648 | H27: 420040.081 | I27: 3481858.896 | J27: 2105.57 | K27: 3483964.466 | M27: 1341886.1 | N27: 1413720.904 | O27: 313215.429 | P27: 425772.584 | Q27: 3494595.017 | R27: 2237.387 | S27: 3496832.404 | U27: 1343441 | V27: 1329636 | W27: 281895 | X27: 475497 | Y27: 3430469 | Z27: 2755.658 | AA27: 3433224.658 | AC27: 1246576.816 | AD27: 1344878.969 | AE27: 294610 | AF27: 430163 | AG27: 3316228.785 | AH27: 2923.289 | AI27: 3319152.074
B28: Non-renewable energy consumption | C28: MWh | E28: 660531.371 | F28: 1424664.058 | G28: 318574.648 | H28: 0 | I28: 2403770.077 | J28: 2105.57 | K28: 2405875.647 | M28: 867195.876 | N28: 1413720.904 | O28: 313215.429 | P28: 221303.598 | Q28: 2815435.807 | R28: 2237.387 | S28: 2817673.194 | U28: 593185.8295 | V28: 1329636 | W28: 281895 | X28: 474325.232 | Y28: 2679042.061 | Z28: 2755.658 | AA28: 2681797.719 | AC28: 508032.7877 | AD28: 1344878.969 | AE28: 294610 | AF28: 429240.684 | AG28: 2576762.441 | AH28: 2923.289 | AI28: 2579685.73
A29: 302-1 | B29: Renewable energy consumption | C29: MWh | E29: 658048.738 | F29: 0 | G29: 0 | H29: 420040.081 | I29: 1078088.819 | J29: 0 | K29: 1078088.819 | M29: 474690.224 | N29: 0 | O29: 0 | P29: 204468.986 | Q29: 679159.21 | R29: 0 | S29: 679159.21 | U29: 750255.1705 | V29: 0 | W29: 0 | X29: 1171.768 | Y29: 751426.9385 | Z29: 0 | AA29: 751426.9385 | AC29: 738544.0287 | AD29: 0 | AE29: 0 | AF29: 922.316 | AG29: 739466.3447 | AH29: 0 | AI29: 739466.3447
A30: 302-1 | B30: Renewable energy | C30: Percentage of total consumption | E30: 0.4990585961 | F30: 0 | G30: 0 | H30: 1 | I30: 0.3096302438 | J30: 0 | K30: 0.3094431156 | M30: 0.3537485216 | N30: 0 | O30: 0 | P30: 0.480230512 | Q30: 0.1943456128 | R30: 0 | S30: 0.1942212641 | U30: 0.5584578485 | V30: 0 | W30: 0 | X30: 0.002464301562 | Y30: 0.2190449581 | Z30: 0 | AA30: 0.218869143 | AC30: 0.5924576962 | AD30: 0 | AE30: 0 | AF30: 0.002144108164 | AG30: 0.2229841162 | AH30: 0 | AI30: 0.2227877266
A31: 302-3 | B31: Electrical energy intensity | C31: kWh/tonne fine copper payable | E31: 4060.855574 | F31: 5196.052469 | G31: 4054.144159 | H31: 9543.663386 | I31: 4825.99866 | K31: 4828.917066 | M31: 3731.60762 | N31: 5728.204635 | O31: 3949.753203 | P31: 8833.4561 | Q31: 4761.677363 | S31: 4764.72599 | U31: 3697.272677 | V31: 4807.071584 | W31: 3920.653686 | X31: 8191.162791 | Y31: 4455.675339 | AA31: 4459.254534 | AC31: 3484.004518 | AD31: 5422.899069 | AE31: 4080.470914 | AF31: 9094.35518 | AG31: 4572 | AI31: 4576.247173
A32: 302-1 | B32: Fuel | C32: Giga Joules | E32: 3450666.557 | F32: 7769829.778 | G32: 1093096.224 | H32: 1921256.549 | I32: 14234849.11 | J32: 1206216.897 | K32: 15441066.01 | M32: 3347896.881 | N32: 6136020.917 | O32: 1040549.837 | P32: 1975476.919 | Q32: 12499944.55 | R32: 1190658.727 | S32: 13690603.28 | U32: 3294625.528 | V32: 5630397.222 | W32: 1158699.417 | X32: 1855866.785 | Y32: 11939588.95 | Z32: 1170780.788 | AA32: 13110369.74 | AC32: 3412907.931 | AD32: 5522092.667 | AE32: 1175583.49 | AF32: 1851642.15 | AG32: 11962226.24 | AH32: 1198544.6 | AI32: 13160770.84
A33: Waste Generated
A34: 306-3 | B34: Non-hazardous industrial waste* | C34: Metric tonnes | E34: 13155 | F34: 9376 | G34: 2028 | H34: 712 | I34: 25271 | K34: 25271 | M34: 18331 | N34: 6442 | O34: 2574 | P34: 799 | Q34: 28146 | S34: 30073 | U34: 27197 | V34: 6776 | W34: 1569 | X34: 636 | Y34: 36178 | AA34: 36178 | AC34: 17750 | AD34: 6495 | AE34: 1719 | AF34: 1823 | AG34: 27787 | AI34: 28274
A35: 306-3 | B35: Hazardous industrial waste | C35: Metric tonnes | E35: 2344 | F35: 6286 | G35: 417 | H35: 737 | I35: 9784 | J35: 541 | K35: 10325 | M35: 1597 | N35: 6087 | O35: 613 | P35: 462 | Q35: 8759 | R35: 2744 | S35: 11503 | U35: 1976 | V35: 5349 | W35: 1224 | X35: 536 | Y35: 9085 | Z35: 315.287 | AA35: 9400 | AC35: 2459 | AD35: 5827 | AE35: 771 | AF35: 958 | AG35: 10015 | AH35: 218.33 | AI35: 10233
A36: 306-3 | B36: Domestic waste | C36: Metric tonnes | E36: 1748 | F36: 1999 | G36: 246 | H36: 1470 | I36: 5463 | J36: 400 | K36: 5863 | M36: 1222 | N36: 1887 | O36: 227 | P36: 815 | Q36: 4151 | R36: 1927 | S36: 4151 | U36: 1181 | V36: 2034 | W36: 300 | X36: 697 | Y36: 4213 | Z36: 1776.4 | AA36: 5989 | AC36: 1104 | AD36: 1824 | AE36: 246 | AF36: 619 | AG36: 3793 | AH36: 487 | AI36: 3793
A37: 306-3 | B37: Total weight of waste generated | C37: Metric tonnes | E37: 17246 | F37: 17661 | G37: 2691 | H37: 2919 | I37: 40518 | J37: 941 | K37: 41459 | M37: 21150 | N37: 14416 | O37: 3414 | P37: 2076 | Q37: 41056 | R37: 4671 | S37: 45727 | U37: 30355 | V37: 14159 | W37: 3093 | X37: 1869 | Y37: 49476 | Z37: 2091.687 | AA37: 51568 | AC37: 21313 | AD37: 14146 | AE37: 2736 | AF37: 3399 | AG37: 41594 | AH37: 705.33 | AI37: 42299
A38: Waste Disposal
A39: 306-3 | B39: Recycled waste | C39: Metric tonnes | E39: 11391 | F39: 3357 | G39: 1462 | H39: 1375 | I39: 17585 | J39: 12173 | K39: 29758 | M39: 16359 | N39: 1897 | O39: 1183 | P39: 301 | Q39: 19740 | R39: 1521.836 | S39: 21262 | U39: 24844 | V39: 3629 | W39: 3181 | X39: 116 | Y39: 31770 | Z39: 4743 | AA39: 36513 | AC39: 15747 | AD39: 2093 | AE39: 676 | AF39: 1339 | AG39: 19855 | AH39: 1124.628 | AI39: 20980
A40: 306-3 | B40: Reused waste | C40: Metric tonnes | E40: 1584 | F40: 3816 | G40: 0 | H40: 0 | I40: 5400 | J40: 0 | K40: 5400 | M40: 966 | N40: 4033 | O40: 0 | P40: 299 | Q40: 5298 | R40: 0 | S40: 5298 | U40: 1031 | V40: 2830 | W40: 0 | X40: 397 | Y40: 4258 | Z40: 618 | AA40: 4876 | AC40: 1071 | AD40: 2536 | AE40: 0 | AF40: 374 | AG40: 3981 | AH40: 185.7502 | AI40: 4167
B41: Total waste recycled/reused | C41: Metric tonnes | E41: 12975 | F41: 7174 | G41: 1462 | H41: 1375 | I41: 22986 | J41: 12173 | K41: 35159 | M41: 17325 | N41: 5930 | O41: 1183 | P41: 600 | Q41: 25038 | R41: 1521.836 | S41: 26560 | U41: 25874 | V41: 6459 | W41: 3181 | X41: 513 | Y41: 36028 | Z41: 5361 | AA41: 41389 | AC41: 16819 | AD41: 4629 | AE41: 676 | AF41: 1713 | AG41: 23836 | AH41: 1310.3782 | AI41: 25147
A42: 306-3 | B42: Total waste incinerated | C42: Metric tonnes | E42: 0 | F42: 0 | G42: 0 | H42: 0 | I42: 0 | J42: 72 | K42: 72 | M42: 0 | N42: 0 | O42: 0 | P42: 0 | Q42: 0 | R42: 163.29 | S42: 163 | U42: 0 | V42: 0 | W42: 0 | X42: 0 | Y42: 0 | Z42: 0 | AA42: 0 | AC42: 0 | AD42: 0 | AE42: 0 | AF42: 0 | AG42: 0 | AH42: 14.25 | AI42: 14
A43: 306-3 | B43: Total waste composted | C43: Metric tonnes | E43: 0 | F43: 0 | G43: 0 | H43: 0 | I43: 0 | J43: 0 | K43: 0 | M43: 0 | N43: 0 | O43: 0 | P43: 0 | Q43: 0 | R43: 0 | S43: 0 | U43: 0 | V43: 0 | W43: 0 | X43: 0 | Y43: 0 | Z43: 0 | AA43: 0 | AC43: 0 | AD43: 0 | AE43: 0 | AF43: 0 | AG43: 0 | AH43: 0 | AI43: 0
A44: 306-3 | B44: Recycling rate | C44: Percentage | E44: 0.752 | F44: 0.406 | G44: 0.543 | H44: 0.471 | I44: 0.567 | J44: 13 | M44: 0.819 | N44: 0.411 | O44: 0.347 | P44: 0.289 | Q44: 0.61 | R44: 0.3258275026 | U44: 0.852 | V44: 0.456 | W44: 1.028 | X44: 0.274 | Y44: 0.728 | Z44: 2.563002973 | AC44: 0.789 | AD44: 0.33 | AE44: 0.344 | AF44: 0.504 | AG44: 0.563 | AH44: 1.857417319 | AI44: 0.595
A45: Mineral Waste
A46: MM3 | B46: Waste rock | C46: Million metric tonnes | E46: 84.64 | F46: 251.009 | G46: 27.044 | H46: 29.82533117 | I46: 392.5183312 | K46: 392.5183312 | M46: 86.387 | N46: 165.98 | O46: 23.391 | P46: 39.867 | Q46: 315.625 | S46: 315.625 | U46: 87.064 | V46: 155.532 | W46: 23.14 | X46: 41.415 | Y46: 307.151 | AA46: 307.151 | AC46: 83.922 | AD46: 142.538 | AE46: 28.574 | AF46: 31.457 | AG46: 286.491 | AI46: 286.491
A47: MM3 | B47: Tailings | C47: Million metric tonnes | E47: 54.899638 | F47: 37.51168 | H47: 0.45366 | I47: 92.864978 | K47: 92.864978 | M47: 57.92441 | N47: 34.835971 | P47: 0.422105 | Q47: 93.182486 | S47: 93.182486 | U47: 60.030796 | V47: 33.090614 | X47: 0.292321 | Y47: 93.413731 | AA47: 93.413731 | AC47: 60.630866 | AD47: 34.582 | AF47: 0.302822 | AG47: 95.515688 | AI47: 95.515688
B48: Total Mineral Waste Disposed | C48: Million metric tonnes | E48: 139.539638 | F48: 288.52068 | G48: 27.044 | H48: 30.27899117 | I48: 485.3833092 | K48: 485.3833092 | M48: 144.31141 | N48: 200.815971 | O48: 23.391 | P48: 40.289105 | Q48: 408.807486 | S48: 408.807486 | U48: 147.094796 | V48: 188.622614 | W48: 23.14 | X48: 41.707321 | Y48: 400.564731 | AA48: 400.564731 | AC48: 144.552866 | AD48: 177.12 | AE48: 28.574 | AF48: 31.759822 | AG48: 382.006688 | AI48: 382.006688
A49: MM3 | B49: Spent ore | C49: Million metric tonnes | F49: 22.22 | G49: 31.321 | H49: 15.547441 | I49: 69.088441 | K49: 69.088441 | N49: 21.07 | O49: 28.084 | P49: 14.013 | Q49: 63.167 | S49: 63.167 | V49: 27.69 | W49: 22.014 | X49: 16.752 | Y49: 66.456 | AA49: 66.456 | AD49: 16.761 | AE49: 27.729 | AF49: 18.308 | AG49: 62.798 | AI49: 62.798
A50: Biodiversity
A51: Overall - The Total Number of Sites and the Total Area Used for Operational Activities
B52: Number of sites | C52: Number | D52: 0 | E52: 4 | F52: 0 | G52: 0 | H52: 0 | I52: 4 | J52: 0 | K52: 4 | L52: 0 | M52: 4 | N52: 0 | O52: 0 | P52: 0 | Q52: 4 | R52: 0 | S52: 4 | T52: 0 | U52: 4 | V52: 0 | W52: 0 | X52: 0 | Y52: 4 | Z52: 0 | AA52: 4 | AB52: 0 | AC52: 4 | AD52: 0 | AE52: 0 | AF52: 0 | AG52: 4 | AH52: 0 | AI52: 4
B53: Total area of the sites | C53: Hectares | D53: 0 | E53: 1078 | F53: 0 | G53: 0 | H53: 0 | I53: 1078 | J53: 0 | K53: 1078 | L53: 0 | M53: 1078 | N53: 0 | O53: 0 | P53: 0 | Q53: 1078 | R53: 0 | S53: 1078 | T53: 0 | U53: 1078 | V53: 0 | W53: 0 | X53: 0 | Y53: 1078 | Z53: 0 | AA53: 1078 | AB53: 0 | AC53: 1078 | AD53: 0 | AE53: 0 | AF53: 0 | AG53: 1078 | AH53: 0 | AI53: 1078
A54: Assessment- The Biodiversity Impact Assessments in the Past Five Years
B55: Number of sites | C55: Number | D55: 0 | E55: 12 | F55: 0 | G55: 0 | H55: 0 | I55: 12 | J55: 0 | K55: 12 | L55: 0 | M55: 12 | N55: 0 | O55: 0 | P55: 0 | Q55: 12 | R55: 0 | S55: 12 | T55: 0 | U55: 12 | V55: 0 | W55: 0 | X55: 0 | Y55: 12 | Z55: 0 | AA55: 12 | AB55: 0 | AC55: 12 | AD55: 0 | AE55: 0 | AF55: 0 | AG55: 12 | AH55: 0 | AI55: 12
B56: Total area of the sites | C56: Hectares | D56: 0 | E56: 26921 | F56: 0 | G56: 0 | H56: 0 | I56: 26921 | J56: 0 | K56: 26921 | L56: 0 | M56: 26921 | N56: 0 | O56: 0 | P56: 0 | Q56: 26921 | R56: 0 | S56: 26921 | T56: 0 | U56: 26921 | V56: 0 | W56: 0 | X56: 0 | Y56: 26921 | Z56: 0 | AA56: 26921 | AB56: 0 | AC56: 26921 | AD56: 0 | AE56: 0 | AF56: 0 | AG56: 26921 | AH56: 0 | AI56: 26921
A57: Exposure – The Number of Sites that Located Close Proximity to Critical Biodiversity
B58: Number of sites | C58: Number | D58: 0 | E58: 7 | F58: 0 | G58: 0 | H58: 0 | I58: 7 | J58: 0 | K58: 7 | L58: 0 | M58: 7 | N58: 0 | O58: 0 | P58: 0 | Q58: 7 | R58: 0 | S58: 7 | T58: 0 | U58: 7 | V58: 0 | W58: 0 | X58: 0 | Y58: 7 | Z58: 0 | AA58: 7 | AB58: 0 | AC58: 7 | AD58: 0 | AE58: 0 | AF58: 0 | AG58: 7 | AH58: 0 | AI58: 7
B59: Total area of the sites | C59: Hectares | D59: 0 | E59: 12240 | F59: 0 | G59: 0 | H59: 0 | I59: 12240 | J59: 0 | K59: 12240 | L59: 0 | M59: 12240 | N59: 0 | O59: 0 | P59: 0 | Q59: 12240 | R59: 0 | S59: 12240 | T59: 0 | U59: 12240 | V59: 0 | W59: 0 | X59: 0 | Y59: 12240 | Z59: 0 | AA59: 12240 | AB59: 0 | AC59: 12240 | AD59: 0 | AE59: 0 | AF59: 0 | AG59: 12240 | AH59: 0 | AI59: 12240
A60: Management Plans - The Sites that Have a Biodiversity Management Plan
B61: Number of sites | C61: Number | D61: 0 | E61: 6 | F61: 0 | G61: 0 | H61: 0 | I61: 6 | J61: 0 | K61: 6 | L61: 0 | M61: 6 | N61: 0 | O61: 0 | P61: 0 | Q61: 6 | R61: 0 | S61: 6 | T61: 0 | U61: 6 | V61: 0 | W61: 0 | X61: 0 | Y61: 6 | Z61: 0 | AA61: 6 | AB61: 0 | AC61: 6 | AD61: 0 | AE61: 0 | AF61: 0 | AG61: 6 | AH61: 0 | AI61: 6
B62: Total area of the sites | C62: Hectares | D62: 0 | E62: 3153 | F62: 0 | G62: 0 | H62: 0 | I62: 3153 | J62: 0 | K62: 3153 | L62: 0 | M62: 3153 | N62: 0 | O62: 0 | P62: 0 | Q62: 3153 | R62: 0 | S62: 3153 | T62: 0 | U62: 3153 | V62: 0 | W62: 0 | X62: 0 | Y62: 3153 | Z62: 0 | AA62: 3153 | AB62: 0 | AC62: 3153 | AD62: 0 | AE62: 0 | AF62: 0 | AG62: 3153 | AH62: 0 | AI62: 3153
A63: Biodiversity
A64: 304-3 | B64: Protected areas | C64: Hectares | D64: 0 | E64: 26921 | F64: 0 | G64: 0 | H64: 0 | I64: 26921 | J64: 0 | K64: 26921 | L64: 0 | M64: 26921 | N64: 0 | O64: 0 | P64: 0 | Q64: 26921 | R64: 0 | S64: =Q64 -> 26921 | T64: 0 | U64: 26921 | V64: 0 | W64: 0 | X64: 0 | Y64: 26921 | Z64: 0 | AA64: =Y64 -> 26921 | AB64: 0 | AC64: 26921 | AD64: 0 | AE64: 0 | AF64: 0 | AG64: 26921 | AH64: 0 | AI64: =AG64 -> 26921
A65: Mineral Waste Management
A66: Number Tailings Facilities Currently Managed by the Company
B67: Active operations | C67: Number of facilities | E67: 2 | F67: 1 | H67: 1 | I67: 4 | K67: 4 | M67: 2 | N67: 1 | P67: 1 | Q67: 4 | S67: 4 | U67: 2 | V67: 1 | X67: 1 | Y67: 4 | AA67: 4 | AC67: 2 | AD67: 1 | AF67: 1 | AG67: 4 | AI67: 4
A69: * Transport division reports industrial hazardous waste and domestic waste consolidades under domestic waste.

Sheet FCAB Water
A2: FCAB ESG Databook
A8: » Quantitative data of transport division water performance.
A10: Indicators | D10: 2021 | E10: 2020 | F10: 2019 | G10: 2018
A11: GRI | B11: Required Data | C11: Unit | D11: Transport Division | E11: Transport Division | F11: Transport Division | G11: Transport Division
A12: Environmental
A13: Water performance
A14: Water Withdrawal
B15: Withdrawal: Total municipal water supplies (or from other water utilities) | C15: Million cubic meters | D15: 106.36 | E15: 158 | F15: 111 | G15: 99
B16: Withdrawal: Fresh surface water (lakes, rivers, etc.) | C16: Million cubic meters | D16: 0 | E16: 0 | F16: 17 | G16: 12
B17: Withdrawal: Fresh groundwater | C17: Million cubic meters | D17: 0 | E17: 0 | F17: 0 | G17: 0
B18: Discharge: Water returned to the source of extraction at similar or higher quality as raw water extracted (only applies to B and C) | C18: Million cubic meters | D18: 0 | E18: 0 | F18: 0 | G18: 0
B19: Total net fresh water consumption | C19: Million cubic meters | D19: 106.36 | E19: 158 | F19: 128 | G19: 111
A20: Water Management
A21: 303-3 | B21: Total water withdrawal | C21: Megaliters | D21: 1.0636 | E21: 1.58 | F21: 1.28 | G21: 1.11
A22: 303-3 | B22: Seawater | C22: Megaliters | D22: 0 | E22: 0 | F22: 0 | G22: 0
A23: 303-3 | B23: Surface water | C23: Megaliters | D23: 0 | E23: 0 | F23: 0.17 | G23: 0.12
A24: 303-3 | B24: Groundwater | C24: Megaliters | D24: 0 | E24: 0 | F24: 0 | G24: 0
A25: 303-3 | B25: Third party water | C25: Megaliters | D25: 1.0636 | E25: 1.58 | F25: 1.11 | G25: 0.99

Sheet Copper Mark
A2: Antofagasta Minerals ESG Databook
A8: » Results of Copper Mark evaluations.
A10: Launched in March 2020, the Copper Mark is an independent assurance framework of the copper industry’s responsible mining practices that addresses the demand for greater disclosure on environmental, social and governance performance by investors, NGOs and wider society in general. Our Centinela and Zaldívar mines were awarded the Copper Mark in 2021, and Antucoya received its award in 2022. Los Pelambres will complete the assessment September 2022.
C13: View Report | D13: View Report | E13: View Report
B14: Copper Mark Criteria | C14: Centinela | D14: Zaldívar | E14: Antucoya
A15: 1 | B15: Legal Compliance | C15: Fully meets | D15: Fully meets | E15: Fully meets
A16: 2 | B16: Business integrity | C16: Fully meets | D16: Fully meets | E16: Fully meets
A17: 3 | B17: Stakeholder engagement | C17: Fully meets | D17: Fully meets | E17: Fully meets
A18: 4 | B18: Business relationships | C18: Fully meets | D18: Fully meets | E18: Fully meets
A19: 5 | B19: Child labour | C19: Fully meets | D19: Fully meets | E19: Fully meets
A20: 6 | B20: Forced labour | C20: Fully meets | D20: Fully meets | E20: Fully meets
A21: 7 | B21: Freedom of association and collective bargaining | C21: Fully meets | D21: Fully meets | E21: Fully meets
A22: 8 | B22: Discrimination | C22: Fully meets | D22: Fully meets | E22: Fully meets
A23: 9 | B23: Gender equality | C23: Fully meets | D23: Fully meets | E23: Fully meets
A24: 10 | B24: Working hours | C24: Fully meets | D24: Fully meets | E24: Fully meets
A25: 11 | B25: Remuneration | C25: Fully meets | D25: Fully meets | E25: Fully meets
A26: 12 | B26: Occupational health and safety | C26: Fully meets | D26: Fully meets | E26: Fully meets
A27: 13 | B27: Grievance mechanism | C27: Fully meets | D27: Fully meets | E27: Partially meets
A28: 14 | B28: Environmental risk management | C28: Fully meets | D28: Fully meets | E28: Fully meets
A29: 15 | B29: Greenhouse gas emissions (GHG) | C29: Fully meets | D29: Fully meets | E29: Fully meets
A30: 16 | B30: Energy consumption | C30: Fully meets | D30: Fully meets | E30: Fully meets
A31: 17 | B31: Freshwater management and conservation | C31: Fully meets | D31: Fully meets | E31: Fully meets
A32: 18 | B32: Waste management | C32: Fully meets | D32: Fully meets | E32: Fully meets
A33: 19 | B33: Tailings management | C33: Fully meets | D33: Fully meets | E33: Not applicable
A34: 20 | B34: Pollution | C34: Fully meets | D34: Fully meets | E34: Fully meets
A35: 21 | B35: Biodiversity and protected areas | C35: Fully meets | D35: Fully meets | E35: Fully meets
A36: 22 | B36: Mine closure and reclamation | C36: Fully meets | D36: Fully meets | E36: Fully meets
A37: 23 | B37: Community health and safety | C37: Fully meets | D37: Fully meets | E37: Fully meets
A38: 24 | B38: Community development | C38: Fully meets | D38: Fully meets | E38: Fully meets
A39: 25 | B39: Artisanal and small-scale mining | C39: Not applicable | D39: Not applicable | E39: Not applicable
A40: 26 | B40: Human rights | C40: Fully meets | D40: Fully meets | E40: Fully meets
A41: 27 | B41: Security and human rights | C41: Fully meets | D41: Fully meets | E41: Fully meets
A42: 28 | B42: Indigenous peoples’ rights | C42: Fully meets | D42: Fully meets | E42: Not applicable
A43: 29 | B43: Land acquisition and resettlement | C43: Not applicable | D43: Not applicable | E43: Not applicable
A44: 30 | B44: Cultural heritage | C44: Fully meets | D44: Fully meets | E44: Fully meets
A45: 31 | B45: Due diligence in mineral supply chains | C45: Fully meets | D45: Fully meets | E45: Fully meets
A46: 32 | B46: Transparency and disclosure | C46: Fully meets | D46: Fully meets | E46: Fully meets
A47: Centinela's results are as un July 2022, Antucoya as of August 2022 and Zaldívar as of August 2021.

Sheet ICMM Commitments
A2: Antofagasta Minerals ESG Databook
A12: ICMM Minumun Reporting Commitments
A13: 1 | B13: Interactions With Water (What are the company’s main:) | C13: Water activities? | D13: Within our operations, we use water for a variety of purposes. The principal areas of use are in ore processing, tailings management and dust suppression. We use water of variable qualities, and preferentially use low quality water where available and feasible - for example seawater is used in two of our operations, such that about 45% of our total withdrawal was seawater.
C14: Water sources used for withdrawal? | D14: In 2021, 45% of our water withdrawal was from seawater, 23% from surface water and 32% from groundwater. 70% of our total water withdrawals are classified as being of low quality and 30% as being high quality. The principal source of high quality water is surface water (rivers and rainfall).
C15: Consumptive water uses? | D15: In 2021, the main consumptive water uses were in the tailings and spent leached ore (ripios) and evaporation from the TSFs and leach pads.
C16: Water discharges? | D16: In 2021, the main discharge was to the ocean of the reject water (brine) from a seawater reverse osmosis (RO) plant in Centinela’s dock. Additional seawater is added to the brine to provide dilution. The RO plant is located at a port site and is used to produce wash water for the concentrate prior to shipping.
A17: 2 | B17: Water risks and opportunities | C17: Overall, how material is water to business value and performance? | D17: Water is fundamental and is a strategic resource for the company as it is required in the processing of the ore.
C18: What are the material water risks or challenges facing the company? | D18: The company faces multiple material water risks and challenges including climate change driven risks such as greater extremes from drought and higher intensity rainfall events; social and community challenges that can impact reputation and production; the use of seawater and the need to pump such water long distances and to high elevations and the energy demand associated with this; increased water scarcity and stress; changes in regulatory rules and requirements. In addition, the company is in the process of an environmental impact assessment to extend the life of an operation that includes the extension of the pumping from a wellfield.
C19: Does the company hold significant operations in water-stressed areas? | D19: All four of our operations are situated in areas with high or very-high levels of water stress. This assessment of water stress is based on the analysis using the WRI Aqueduct tool combined with local knowledge.
C20: Has the company had any material regulatory non-compliances relating to the quality of its discharges? If yes, briefly describe. | D20: The company has not had any material regulatory non-compliances relating to the quality of its discharges during the reporting period of 2021.
C21: What water opportunities are available to the company? | D21: Use of desalinated seawater in MLP to reduce withdrawal of continental waters; working with and supporting communities through our community program Somos Choapa associated with the Pelambres mine; support and funding of water investigations programs, within the framework of the Antofagasta Minerals Chair of Water Sustainability in an alliance to the Catholic University of Chile (UC).
A22: 3 | B22: Commitment and response | C22: How does the company integrate water into business strategy and leadership? | D22: AMSA recognizes Water Management as a fundamental activity in copper mining and the importance of protecting the availability of water both in its operations and for the communities and the environment. At the corporate level, in 2021 AMSA created the Water Resources Department, which is part of Water and Energy Resources Management, in the company's Vice Presidency of Strategy and Innovation. The Water Resources Management is responsible for the company's Water Management, whose priorities are: - Evolution of the water matrix, focusing on reducing the extraction of continental waters - Safety and reliability of water supply - Promote the efficient use of water and reduce the water footprint in operations - Carry out sustainable water performance and compliance with climate change goals The Water Resources Management developed the AMSA Water Policy, approved by Antofagasta Minerals in 2022. During 2022, the Water Resources Management will lead the development of the company's Water Management Standard and Water Procedure. Regarding the integration of water considerations into business planning, the Mining Resources Development Strategy Management is part of the Vice Presidency of Strategy and Innovation, where long-term mining plans are managed: base case, development case, and Strategic Growth Plan integrate water considerations into business planning. Water and energy are enablers in each of these plans, being strategic inputs; there is no long-term plan without them.
C23: What are the company’s approach and commitments to water stewardship? | D23: The Water and Energy Resources Management, part of the Vice Presidency of Strategy and Innovation, aims to work at the Corporate Level to have a safe, economical, efficient and sustainable water supply under four focuses. The first is the security and reliability of the water supply; the second is Competitive price and favourable terms and conditions; the third is Greater Efficiency in water consumption; the fourth is sustainability and compliance with Climate Change goals. Under this Corporate structure, we are working on defining the Operating Model. Water quantity issues (balance) are handled through our operations' Planning and Development Management, while the Environment Area addresses water quality issues. We continue to apply the ICMM's Water Stewardship Framework to reporting our direct water withdrawal. In addition, we report our water risk exposure following the requirements of the Water Programme of the Carbon Disclosure Project (CDP). Antofagasta Minerals approved a Water Policy, to deliver a position statement regarding water management and establish the guidelines of the company, in order to improve the use, consumption, sustainability and water efficiency of all the operations.
C24: How does the company promote stakeholder engagement, and with whom? | D24: A predominantly agricultural area, the Choapa Province is being hit hard by an 11-year drought. Our two water management programmes, implemented by Fundación Minera Los Pelambres (FMLP) under the framework of the Somos Choapa programme, aim to alleviate its adverse effects and prepare the province for the expected consequences of climate change by working with communities to improve the efficiency of irrigation water and ensuring the quality, quantity and continuity of drinking water in rural areas. Aside from the Somos Choapa initiatives, Los Pelambres is actively participating in a Provincial Water Working Group established by the Regional Government to identify and implement solutions to improve the area's water security in the short, medium and long term. Our work with academia also involves two major research programmes on water-related challenges in Chile, which are expected to become more acute due to climate change. We are co-financing the public-private Quitai Anko research consortium, led by the University of La Serena, which won a bid in 2019 to implement a five-year programme to develop sustainable solutions to water issues. It initially focuses on solutions for the Choapa Valley, where Los Pelambres is located. Subsequently, it applies to the rest of the Coquimbo Region and the similarly water-stressed neighbouring Atacama and Valparaíso Regions. In an alliance with the Catholic University of Chile (UC), Antofagasta has also pioneered an endowment of $1.5 million to develop the Antofagasta Minerals Chair of Water Sustainability to conduct multi-disciplinary research and outreach activities on water management throughout the country. In the country's northern region, we work with communities to improve Rural Drinking Water for Calama Poniente and Michilla and collaborate with the Water Committee to ensure the availability of this resource for human consumption.
C25: How does the company identify and manage water risks and realise opportunities? Including those associated with: a. Water quality? b. Exposure to water stress? c. Climate change? | D25: The risk management team maintains the register of all the company’s risk, including strategic risks that cover the most significant threats to the company’s performance or strategy, along with control measures and action plans. The risk register is updated on a continuous basis, and strategic risk workshops, with all senior management, is performed at least twice a year, where the company´s key strategic risks and related mitigation activities are reviewed. The risks are managed at corporate level and then depending on the guidelines and control mechanisms, they are taken down to the local level. Mitigation techniques for significant strategic and business unit risks are annually reviewed by the Risk and Compliance Management Department. The company promotes a consistent risk management process across the different business units, including climate change issues, ensuring risk is considered at all levels of the organisation. Since 2020, AMSA has implemented a world-class risk management tool (SWORD), in line with our commitment to digital transformation, to review key risks according to our risk methodology, and all the users were trained.
C26: Does the company set water performance targets? If so, describe what targets are set and why. If not, outline why not. | D26: AMSA is committed to reduce the use of continental water and increase efficiency on water use in our operations, all situated in areas with high or very-high levels of water stress. Therefore, we have set following water performance targets: From 2022 to 2025: - Reused and recycled water account for more than 80% of the operational water use in each of our operations. By 2025 (*): - Reused, recycled and sea water account for more than 90% of the group's operational water use. - 50% reduction of our continental water withdrawals for operational use compared to 2020. By 2030: - 65% reduction of our continental water withdrawals for operational use compared to 2020. (*) Subject to obtaining Permits

Sheet ICMM Water - MD
A2: ICMM Water - Mining Division ESG Databook
A8: » Quantitative data ICMM water, consolidated Mining Division.
A10: ICMM Water Reporting Metrics - Mining Division | E10: 2021 | H10: 2020 | K10: 2019 | N10: 2018
A11: Water Type | B11: Metric | C11: Source / Destination | E11: Water Quality | H11: Water Quality | K11: Water Quality | N11: Water Quality
E12: High (ML) | F12: Low (ML) | G12: Total (ML) | H12: High (ML) | I12: Low (ML) | J12: Total (ML) | K12: High (ML) | L12: Low (ML) | M12: Total (ML) | N12: High (ML) | O12: Low (ML) | P12: Total (ML)
A13: Operational water | B13: Withdrawal | C13: Surface water | E13: 14133.28578 | F13: 1657.200566 | G13: 15790.48634 | H13: 17802.77228 | I13: 1678.170504 | J13: 19480.94279 | K13: 12320.02301 | L13: 1577.942369 | M13: 13897.96538 | N13: 14237.27552 | O13: 2296.975682 | P13: 16534.2512
C14: Groundwater | E14: 6271.355073 | F14: 15607.3517 | G14: 21878.70677 | H14: 4951.40224 | I14: 14486.68925 | J14: 19438.09149 | K14: 4804.124416 | L14: 13474.54939 | M14: 18278.6738 | N14: 4469.82753 | O14: 14879.78013 | P14: 19349.60766
C15: Seawater | E15: 0 | F15: 31331.98107 | G15: 31331.98107 | H15: 0 | I15: 29035.64167 | J15: 29035.64167 | K15: 0 | L15: 28225.24799 | M15: 28225.24799 | N15: 0 | O15: 28948.7986 | P15: 28948.7986
C16: Third party water | E16: 8.561416128 | F16: 0 | G16: 8.561416128 | H16: 8.580271857 | I16: 0 | J16: 8.580271857 | K16: 418.9183548 | L16: 0 | M16: 418.9183548 | N16: 869.5343548 | O16: 0 | P16: 869.5343548
C17: Total | E17: 20413.20227 | F17: 48596.53333 | G17: 69009.7356 | H17: 22762.7548 | I17: 45200.50142 | J17: 67963.25622 | K17: 17543.06578 | L17: 43277.73975 | M17: 60820.80553 | N17: 19576.63741 | O17: 46125.55441 | P17: 65702.19182
B18: Discharge (a) | C18: Surface water | E18: 0 | F18: 0 | G18: 0 | H18: 0 | I18: 0 | J18: 0 | K18: 0 | L18: 0 | M18: 0 | N18: 0 | O18: 0 | P18: 0
C19: Groundwater | E19: 0 | F19: 952.8665606 | G19: 952.8665606 | H19: 0 | I19: 892.3014031 | J19: 892.3014031 | K19: 0 | L19: 908.4227912 | M19: 908.4227912 | N19: 0 | O19: 909.220712 | P19: 909.220712
C20: Seawater | E20: 0 | F20: 3062.675728 | G20: 3062.675728 | H20: 0 | I20: 2526.684185 | J20: 2526.684185 | K20: 0 | L20: 2821.314223 | M20: 2821.314223 | N20: 0 | O20: 2306.984509 | P20: 2306.984509
C21: Third party water | E21: 0 | F21: 8.561416128 | G21: 8.561416128 | H21: 0 | I21: 8.580271857 | J21: 8.580271857 | K21: 0 | L21: 8.551354839 | M21: 8.551354839 | N21: 0 | O21: 8.551354839 | P21: 8.551354839
C22: Total | E22: 0 | F22: 4024.103705 | G22: 4024.103705 | H22: 0 | I22: 3427.56586 | J22: 3427.56586 | K22: 0 | L22: 3738.288369 | M22: 3738.288369 | N22: 0 | O22: 3224.756575 | P22: 3224.756575
B23: Consumption | C23: Evaporation | E23: 19100.81467 | F23: 0 | G23: 19100.81467 | H23: 21210.08585 | I23: 659.4461092 | J23: 21869.53196 | K23: 26842.7359 | L23: 716.5583196 | M23: 27559.29422 | N23: 24155.85221 | O23: 706.0954949 | P23: 24861.9477
C24: Entrainment | E24: 0 | F24: 43708.57492 | G24: 43708.57492 | H24: 0 | I24: 38066.18773 | J24: 38066.18773 | K24: 0 | L24: 31382.07599 | M24: 31382.07599 | N24: 0 | O24: 35775.00762 | P24: 35775.00762
C25: Evaporation (dust control) | E25: 1071.252518 | F25: 5238.721206 | G25: 6309.973723 | H25: 327.7961357 | I25: 5857.952277 | J25: 6185.748412 | K25: 206.292 | L25: 6244.755097 | M25: 6451.047097 | N25: 948.1122396 | O25: 5689.724825 | P25: 6637.837064
C26: Task Loss (pipeline) | E26: 0 | F26: 762.4324928 | G26: 762.4324928 | H26: 0 | I26: 820.0146784 | J26: 820.0146784 | K26: 0 | L26: 1420.320794 | M26: 1420.320794 | N26: 0 | O26: 2063.973035 | P26: 2063.973035
C27: Total | E27: 20172.06719 | F27: 49709.72862 | G27: 69881.7958 | H27: 21537.88199 | I27: 45403.60079 | J27: 66941.48278 | K27: 27049.0279 | L27: 39763.7102 | M27: 66812.7381 | N27: 25103.96445 | O27: 44234.80098 | P27: 69338.76542
B28: Change in storage | G28: -1564.027499 | J28: -634.3300387 | M28: -4984.754013 | P28: 97.93689203
B29: Reuse & Recycle | G29: 336230.1351 | J29: 389708.1259 | M29: 422627.4266 | P29: 432350.2994
B30: Operational water use | G30: 404456.026 | J30: 458668.798 | M30: 484402.679 | P30: 497242.7986
A31: Other managed water | B31: Withdrawal | C31: Surface water | E31: 1967.660663 | F31: 0 | G31: 1967.660663 | H31: 1777.768386 | I31: 0 | J31: 1777.768386 | K31: 2559.987823 | L31: 0 | M31: 2559.987823 | N31: 4290.267624 | O31: 0 | P31: 4290.267624
C32: Groundwater | E32: 13221.06384 | F32: 0 | G32: 13221.06384 | H32: 12059.77631 | I32: 0 | J32: 12059.77631 | K32: 9702.3934 | L32: 0 | M32: 9702.3934 | N32: 10355.1763 | O32: 0 | P32: 10355.1763
C33: Seawater | E33: 0 | F33: 0 | G33: 0 | H33: 0 | I33: 0 | J33: 0 | K33: 0 | L33: 0 | M33: 0 | N33: 0 | O33: 0 | P33: 0
C34: Third party water | E34: 0 | F34: 0 | G34: 0 | H34: 0 | I34: 0 | J34: 0 | K34: 0 | L34: 0 | M34: 0 | N34: 0 | O34: 0 | P34: 0
C35: Total | E35: 15188.72451 | F35: 0 | G35: 15188.72451 | H35: 13837.5447 | I35: 0 | J35: 13837.5447 | K35: 12262.38122 | L35: 0 | M35: 12262.38122 | N35: 14645.44392 | O35: 0 | P35: 14645.44392
B36: Discharge (a) | C36: Surface water | E36: 15188.72451 | F36: 0 | G36: 15188.72451 | H36: 13804.18507 | I36: 0 | J36: 13804.18507 | K36: 12262.38122 | L36: 0 | M36: 12262.38122 | N36: 14645.44392 | O36: 0 | P36: 14645.44392
C37: Groundwater | E37: 0 | F37: 0 | G37: 0 | H37: 0 | I37: 0 | J37: 0 | K37: 0 | L37: 0 | M37: 0 | N37: 0 | O37: 0 | P37: 0
C38: Seawater | E38: 0 | F38: 0 | G38: 0 | H38: 0 | I38: 0 | J38: 0 | K38: 0 | L38: 0 | M38: 0 | N38: 0 | O38: 0 | P38: 0
C39: Third party water | E39: 0 | F39: 0 | G39: 0 | H39: 0 | I39: 0 | J39: 0 | K39: 0 | L39: 0 | M39: 0 | N39: 0 | O39: 0 | P39: 0
C40: Total | E40: 15188.72451 | F40: 0 | G40: 15188.72451 | H40: 13804.18507 | I40: 0 | J40: 13804.18507 | K40: 12262.38122 | L40: 0 | M40: 12262.38122 | N40: 14645.44392 | O40: 0 | P40: 14645.44392
B41: Consumption | C41: Evaporation | E41: 26.96388794 | F41: 0 | G41: 26.96388794 | H41: 12.00862356 | I41: 0 | J41: 12.00862356 | K41: 24.71056576 | L41: 0 | M41: 24.71056576 | N41: 47.63159515 | O41: 0 | P41: 47.63159515
C42: Other loss | E42: 0 | F42: 0 | G42: 0 | H42: 0 | I42: 0 | J42: 0 | K42: 0 | L42: 0 | M42: 0 | N42: 0 | O42: 0 | P42: 0
C43: Total | E43: 26.96388794 | F43: 0 | G43: 26.96388794 | H43: 12.00862356 | I43: 0 | J43: 12.00862356 | K43: 24.71056576 | L43: 0 | M43: 24.71056576 | N43: 47.63159515 | O43: 0 | P43: 47.63159515
B44: Change in storage | G44: 61.342 | J44: 21.351 | M44: -102.167 | P44: -288.451
A47: (a) Includes ICMM operational water and OMW.
D50: ICMM Footnotes
D52: Standardised footnotes to outline a consistent position for ICMM member companies reporting to GRI Standard 303
E54: Metric | F54: GRI Reference | H54: Explanatory Footnote
D55: 1 | E55: Water Quality | F55: (303-3-c-i) (303-3-c-ii) (303-4-b-i) (303-4-b-ii) | H55: Aligned with ICMM definitions, water is accounted and reported by the following two categories. • High quality water – high socio-environmental value with multiple potential beneficial uses and/or receptors. • Low quality water – lower socio-environmental value as the poorer quality may restrict potential suitably for use by a wide range of other users/receptors, excluding adapted ecosystem function. The categories have been defined to maximise transparency in the mining and metals context; and are based on a range of physical-chemical-biological water characteristics appropriate to the local context.
D56: 2 | E56: Withdrawal | F56: (303-3-a) (303-3-b) and all related | H56: Aligned with ICMM definitions, the following two metrics are used to appropriately describe water withdrawal in the mining and metals context. • Operational water – all water which enters the operational water supply system used to meet the operational water demand (and is available for use). • Other managed water – water which is actively managed (i.e. physical pumped, actively treated, or has material consumptive losses) without intent to meet the operational water demand (and is not available for use).
D57: 3 | E57: Water Discharge | F57: (303-4-a) and all related (303-4-c) | H57: The ICMM and GRI definitions of water discharge are interpreted to be consistent.
D58: 4 | E58: Consumption | F58: (303-5-a) (303-5-b) | H58: Aligned with ICMM definitions, consumption is the sum of water removed by evaporation, entrainment (in product and waste) and other losses. To maximise transparency, consumption does not include any change in storage (delta storage), which is reported as a separate value.
D59: 5 | E59: Produced Water | F59: (303-3-a-iv) (303-3-b-iv) | H59: Aligned with ICMM definitions, water entrained in ore extracted from the ground is reported as a withdrawal from groundwater (not as produced water).
D60: 6 | E60: Change in Storage | F60: (303-5-c) | H60: Aligned with ICMM recommendations, the change in storage volume is reported to allow complete transparency of the overall water balance; and does not indicate an associated water-related impact.

Sheet ICMM Water - MD Operations
A2: ICMM Water - Mining Division Operations ESG Databook
A8: » Quantitative data ICMM water, breakdown by mining operations.
A13: ICMM Water - Los Pelambres ESG Databook
A20: ICMM Water Reporting Metrics - Minera Los Pelambres | E20: 2021 | H20: 2020 | K20: 2019 | N20: 2018
A21: Water Type | B21: Metric | C21: Source / Destination | E21: Water Quality | H21: Water Quality | K21: Water Quality | N21: Water Quality
E22: High (ML) | F22: Low (ML) | G22: Total (ML) | H22: High (ML) | I22: Low (ML) | J22: Total (ML) | K22: High (ML) | L22: Low (ML) | M22: Total (ML) | N22: High (ML) | O22: Low (ML) | P22: Total (ML)
A23: Operational water | B23: Withdrawal | C23: Surface water | E23: 14133.28578 | F23: 1657.200566 | G23: 15790.48634 | H23: 17802.77228 | I23: 1678.170504 | J23: 19480.94279 | K23: 12320.02301 | L23: 1577.942369 | M23: 13897.96538 | N23: 14237.27552 | O23: 2296.975682 | P23: 16534.2512
C24: Groundwater | E24: 3779.137073 | F24: 7239.494302 | G24: 11018.63138 | H24: 2337.861294 | I24: 6019.767949 | J24: 8357.629243 | K24: 2618.030416 | L24: 5108.460943 | M24: 7726.491359 | N24: 2500.01353 | O24: 6265.63782 | P24: 8765.651349
C25: Seawater | E25: 0 | F25: 0 | G25: 0 | H25: 0 | I25: 0 | J25: 0 | K25: 0 | L25: 0 | M25: 0 | N25: 0 | O25: 0 | P25: 0
C26: Third party water | E26: 8.561416128 | F26: 0 | G26: 8.561416128 | H26: 8.580271857 | I26: 0 | J26: 8.580271857 | K26: 8.551354839 | L26: 0 | M26: 8.551354839 | N26: 8.551354839 | O26: 0 | P26: 8.551354839
C27: Total | E27: 17920.98427 | F27: 8896.694868 | G27: 26817.67913 | H27: 20149.21385 | I27: 7697.938453 | J27: 27847.1523 | K27: 14946.60478 | L27: 6686.403312 | M27: 21633.00809 | N27: 16745.84041 | O27: 8562.613502 | P27: 25308.45391
B28: Discharge | C28: Surface water | E28: 0 | F28: 0 | G28: 0 | H28: 0 | I28: 0 | J28: 0 | K28: 0 | L28: 0 | M28: 0 | N28: 0 | O28: 0 | P28: 0
C29: Groundwater | E29: 0 | F29: 889.7945606 | G29: 889.7945606 | H29: 0 | I29: 892.3014031 | J29: 892.3014031 | K29: 0 | L29: 908.4227912 | M29: 908.4227912 | N29: 0 | O29: 909.220712 | P29: 909.220712
C30: Seawater | E30: 0 | F30: 0 | G30: 0 | H30: 0 | I30: 0 | J30: 0 | K30: 0 | L30: 0 | M30: 0 | N30: 0 | O30: 0 | P30: 0
C31: Third party water | E31: 0 | F31: 8.561416128 | G31: 8.561416128 | H31: 0 | I31: 8.580271857 | J31: 8.580271857 | K31: 0 | L31: 8.551354839 | M31: 8.551354839 | N31: 0 | O31: 8.551354839 | P31: 8.551354839
C32: Total | E32: 0 | F32: 898.3559767 | G32: 898.3559767 | H32: 0 | I32: 900.881675 | J32: 900.881675 | K32: 0 | L32: 916.974146 | M32: 916.974146 | N32: 0 | O32: 917.7720669 | P32: 917.7720669
B33: Consumption | C33: Evaporation | E33: 8948.886278 | F33: 0 | G33: 8948.886278 | H33: 7029.835042 | I33: 659.4461092 | J33: 7689.281151 | K33: 6699.416799 | L33: 716.5583196 | M33: 7415.975118 | N33: 7231.24537 | O33: 706.0954949 | P33: 7937.340865
C34: Entrainment | E34: 0 | F34: 19072.49178 | G34: 19072.49178 | H34: 0 | I34: 19416.23007 | J34: 19416.23007 | K34: 0 | L34: 19992.7562 | M34: 19992.7562 | N34: 0 | O34: 19988.21443 | P34: 19988.21443
C35: Evaporation (dust control) | E35: 0 | F35: 2025.897021 | G35: 2025.897021 | H35: 0 | I35: 1823.212667 | J35: 1823.212667 | K35: 0 | L35: 2027.166263 | M35: 2027.166263 | N35: 0 | O35: 1759.397946 | P35: 1759.397946
C36: Task Loss (pipeline) | E36: 0 | F36: 242.9074345 | G36: 242.9074345 | H36: 0 | I36: 0 | J36: 0 | K36: 0 | L36: 0 | M36: 0 | N36: 0 | O36: 0 | P36: 0
C37: Total | E37: 8948.886278 | F37: 21341.29624 | G37: 30290.18251 | H37: 7029.835042 | I37: 21898.88884 | J37: 28928.72389 | K37: 6699.416799 | L37: 22736.48078 | M37: 29435.89758 | N37: 7231.24537 | O37: 22453.70788 | P37: 29684.95325
B38: Change in storage | G38: -1790.747 | J38: -563.549 | M38: -4950.948 | P38: 77.405
B39: Reuse & Recycle | G39: 156454.2661 | J39: 121894.0231 | M39: 140368.5285 | P39: 144299.3421
B40: Operational water use | G40: 183271.9452 | J40: 155279.9167 | M40: 168327.3733 | P40: 175245.2792
A41: Other managed water | B41: Withdrawal | C41: Surface water | E41: 1967.660663 | F41: 0 | G41: 1967.660663 | H41: 1777.768386 | I41: 0 | J41: 1777.768386 | K41: 2559.987823 | L41: 0 | M41: 2559.987823 | N41: 4290.267624 | O41: 0 | P41: 4290.267624
C42: Groundwater | E42: 13221.06384 | F42: 0 | G42: 13221.06384 | H42: 12059.77631 | I42: 0 | J42: 12059.77631 | K42: 9702.3934 | L42: 0 | M42: 9702.3934 | N42: 10355.1763 | O42: 0 | P42: 10355.1763
C43: Seawater | E43: 0 | F43: 0 | G43: 0 | H43: 0 | I43: 0 | J43: 0 | K43: 0 | L43: 0 | M43: 0 | N43: 0 | O43: 0 | P43: 0
C44: Third party water | E44: 0 | F44: 0 | G44: 0 | H44: 0 | I44: 0 | J44: 0 | K44: 0 | L44: 0 | M44: 0 | N44: 0 | O44: 0 | P44: 0
C45: Total | E45: 15188.72451 | F45: 0 | G45: 15188.72451 | H45: 13837.5447 | I45: 0 | J45: 13837.5447 | K45: 12262.38122 | L45: 0 | M45: 12262.38122 | N45: 14645.44392 | O45: 0 | P45: 14645.44392
B46: Discharge | C46: Surface water | E46: 15188.72451 | F46: 0 | G46: 15188.72451 | H46: 13804.18507 | I46: 0 | J46: 13804.18507 | K46: 12262.38122 | L46: 0 | M46: 12262.38122 | N46: 14645.44392 | O46: 0 | P46: 14645.44392
C47: Groundwater | E47: 0 | F47: 0 | G47: 0 | H47: 0 | I47: 0 | J47: 0 | K47: 0 | L47: 0 | M47: 0 | N47: 0 | O47: 0 | P47: 0
C48: Seawater | E48: 0 | F48: 0 | G48: 0 | H48: 0 | I48: 0 | J48: 0 | K48: 0 | L48: 0 | M48: 0 | N48: 0 | O48: 0 | P48: 0
C49: Third party water | E49: 0 | F49: 0 | G49: 0 | H49: 0 | I49: 0 | J49: 0 | K49: 0 | L49: 0 | M49: 0 | N49: 0 | O49: 0 | P49: 0
C50: Total | E50: 15188.72451 | F50: 0 | G50: 15188.72451 | H50: 13804.18507 | I50: 0 | J50: 13804.18507 | K50: 12262.38122 | L50: 0 | M50: 12262.38122 | N50: 14645.44392 | O50: 0 | P50: 14645.44392
B51: Consumption | C51: Evaporation | E51: 26.96388794 | F51: 0 | G51: 26.96388794 | H51: 12.00862356 | I51: 0 | J51: 12.00862356 | K51: 24.71056576 | L51: 0 | M51: 24.71056576 | N51: 47.63159515 | O51: 0 | P51: 47.63159515
C52: Other loss | E52: 0 | F52: 0 | G52: 0 | H52: 0 | I52: 0 | J52: 0 | K52: 0 | L52: 0 | M52: 0 | N52: 0 | O52: 0 | P52: 0
C53: Total | E53: 26.96388794 | F53: 0 | G53: 26.96388794 | H53: 12.00862356 | I53: 0 | J53: 12.00862356 | K53: 24.71056576 | L53: 0 | M53: 24.71056576 | N53: 47.63159515 | O53: 0 | P53: 47.63159515
B54: Change in storage | G54: 61.342 | J54: 21.351 | M54: -102.167 | P54: -288.451
A63: ICMM Water - Minera Centinela ESG Databook
A71: ICMM Water Reporting Metrics - Minera Centinela | E71: 2021 | H71: 2020 | K71: 2019 | N71: 2018
A72: Water Type | B72: Metric | C72: Source / Destination | E72: Water Quality | H72: Water Quality | K72: Water Quality | N72: Water Quality
E73: High (ML) | F73: Low (ML) | G73: Total (ML) | H73: High (ML) | I73: Low (ML) | J73: Total (ML) | K73: High (ML) | L73: Low (ML) | M73: Total (ML) | N73: High (ML) | O73: Low (ML) | P73: Total (ML)
A74: Operational water | B74: Withdrawal | C74: Surface water | E74: 0 | F74: 0 | G74: 0 | H74: 0 | I74: 0 | J74: 0 | K74: 0 | L74: 0 | M74: 0 | N74: 0 | O74: 0 | P74: 0
C75: Groundwater | E75: 2492.218 | F75: 1480.430452 | G75: 3972.648452 | H75: 2613.540946 | I75: 1248.772926 | J75: 3862.313873 | K75: 2186.094 | L75: 1169.81781 | M75: 3355.91181 | N75: 1969.814 | O75: 1166.478983 | P75: 3136.292983
C76: Seawater | E76: 0 | F76: 25250.80587 | G76: 25250.80587 | H76: 0 | I76: 23315.82088 | J76: 23315.82088 | K76: 0 | L76: 22602.29899 | M76: 22602.29899 | N76: 0 | O76: 23039.22351 | P76: 23039.22351
C77: Third party water | E77: 0 | F77: 0 | G77: 0 | H77: 0 | I77: 0 | J77: 0 | K77: 410.367 | L77: 0 | M77: 410.367 | N77: 860.983 | O77: 0 | P77: 860.983
C78: Total | E78: 2492.218 | F78: 26731.23632 | G78: 29223.45432 | H78: 2613.540946 | I78: 24564.59381 | J78: 27178.13476 | K78: 2596.461 | L78: 23772.1168 | M78: 26368.5778 | N78: 2830.797 | O78: 24205.70249 | P78: 27036.49949
B79: Discharge | C79: Surface water | E79: 0 | F79: 0 | G79: 0 | H79: 0 | I79: 0 | J79: 0 | K79: 0 | L79: 0 | M79: 0 | N79: 0 | O79: 0 | P79: 0
C80: Groundwater | E80: 0 | F80: 0 | G80: 0 | H80: 0 | I80: 0 | J80: 0 | K80: 0 | L80: 0 | M80: 0 | N80: 0 | O80: 0 | P80: 0
C81: Seawater | E81: 0 | F81: 3062.675728 | G81: 3062.675728 | H81: 0 | I81: 2526.684185 | J81: 2526.684185 | K81: 0 | L81: 2821.314223 | M81: 2821.314223 | N81: 0 | O81: 2306.984509 | P81: 2306.984509
C82: Third party water | E82: 0 | F82: 0 | G82: 0 | H82: 0 | I82: 0 | J82: 0 | K82: 0 | L82: 0 | M82: 0 | N82: 0 | O82: 0 | P82: 0
C83: Total | E83: 0 | F83: 3062.675728 | G83: 3062.675728 | H83: 0 | I83: 2526.684185 | J83: 2526.684185 | K83: 0 | L83: 2821.314223 | M83: 2821.314223 | N83: 0 | O83: 2306.984509 | P83: 2306.984509
B84: Consumption | C84: Evaporation | E84: 5296.343281 | F84: 0 | G84: 5296.343281 | H84: 9079.207802 | I84: 0 | J84: 9079.207802 | K84: 14352.10985 | L84: 0 | M84: 14352.10985 | N84: 11678.62896 | O84: 0 | P84: 11678.62896
C85: Entrainment | E85: 0 | F85: 18853.74217 | G85: 18853.74217 | H85: 0 | I85: 13940.54826 | J85: 13940.54826 | K85: 0 | L85: 7272.798074 | M85: 7272.798074 | N85: 0 | O85: 10588.73678 | P85: 10588.73678
C86: Evaporation (dust control) | E86: 0 | F86: 2379.700424 | G86: 2379.700424 | H86: 11.825 | I86: 1986.001034 | J86: 1997.826034 | K86: 73.717 | L86: 2153.015848 | M86: 2226.732848 | N86: 441.94954 | O86: 2074.920317 | P86: 2516.869857
C87: Task Loss (pipeline) | E87: 0 | F87: 0 | G87: 0 | H87: 0 | I87: 0 | J87: 0 | K87: 0 | L87: 0 | M87: 0 | N87: 0 | O87: 0 | P87: 0
C88: Total | E88: 5296.343281 | F88: 21233.4426 | G88: 26529.78588 | H88: 9091.032802 | I88: 15926.54929 | J88: 25017.58209 | K88: 14425.82685 | L88: 9425.813923 | M88: 23851.64077 | N88: 12120.5785 | O88: 12663.6571 | P88: 24784.23559
B89: Change in storage | G89: 187.267991 | J89: 15.00619831 | M89: -38.59086892 | P89: 40.37516124
B90: Reuse & Recycle | G90: 100035.2406 | J90: 100612.3722 | M90: 95360.09972 | P90: 98031.65939
B91: Operational water use | G91: 129553.3335 | J91: 124519.224 | M91: 117981.0304 | P91: 120362.4607
A92: Other managed water | B92: Withdrawal | C92: Surface water | E92: 0 | F92: 0 | G92: 0 | H92: 0 | I92: 0 | J92: 0 | K92: 0 | L92: 0 | M92: 0 | N92: 0 | O92: 0 | P92: 0
C93: Groundwater | E93: 0 | F93: 0 | G93: 0 | H93: 0 | I93: 0 | J93: 0 | K93: 0 | L93: 0 | M93: 0 | N93: 0 | O93: 0 | P93: 0
C94: Seawater | E94: 0 | F94: 6081.175197 | G94: 6081.175197 | H94: 0 | I94: 5719.82079 | J94: 5719.82079 | K94: 0 | L94: 5622.949 | M94: 5622.949 | N94: 0 | O94: 5909.57509 | P94: 5909.57509
C95: Third party water | E95: 0 | F95: 0 | G95: 0 | H95: 0 | I95: 0 | J95: 0 | K95: 0 | L95: 0 | M95: 0 | N95: 0 | O95: 0 | P95: 0
C96: Total | E96: 0 | F96: 6081.175197 | G96: 6081.175197 | H96: 0 | I96: 5719.82079 | J96: 5719.82079 | K96: 0 | L96: 5622.949 | M96: 5622.949 | N96: 0 | O96: 5909.57509 | P96: 5909.57509
B97: Discharge | C97: Surface water | E97: 0 | F97: 0 | G97: 0 | H97: 0 | I97: 0 | J97: 0 | K97: 0 | L97: 0 | M97: 0 | N97: 0 | O97: 0 | P97: 0
C98: Groundwater | E98: 0 | F98: 0 | G98: 0 | H98: 0 | I98: 0 | J98: 0 | K98: 0 | L98: 0 | M98: 0 | N98: 0 | O98: 0 | P98: 0
C99: Seawater | E99: 0 | F99: 0 | G99: 0 | H99: 0 | I99: 0 | J99: 0 | K99: 0 | L99: 0 | M99: 0 | N99: 0 | O99: 0 | P99: 0
C100: Third party water | E100: 0 | F100: 6081.175197 | G100: 6081.175197 | H100: 0 | I100: 5719.82079 | J100: 5719.82079 | K100: 0 | L100: 5622.949 | M100: 5622.949 | N100: 0 | O100: 5909.57509 | P100: 5909.57509
C101: Total | E101: 0 | F101: 6081.175197 | G101: 6081.175197 | H101: 0 | I101: 5719.82079 | J101: 5719.82079 | K101: 0 | L101: 5622.949 | M101: 5622.949 | N101: 0 | O101: 5909.57509 | P101: 5909.57509
B102: Consumption | C102: Evaporation | E102: 0 | F102: 0 | G102: 0 | H102: 0 | I102: 0 | J102: 0 | K102: 0 | L102: 0 | M102: 0 | N102: 0 | O102: 0 | P102: 0
C103: Other loss | E103: 0 | F103: 0 | G103: 0 | H103: 0 | I103: 0 | J103: 0 | K103: 0 | L103: 0 | M103: 0 | N103: 0 | O103: 0 | P103: 0
C104: Total | E104: 0 | F104: 0 | G104: 0 | H104: 0 | I104: 0 | J104: 0 | K104: 0 | L104: 0 | M104: 0 | N104: 0 | O104: 0 | P104: 0
B105: Change in storage | G105: 0 | J105: 0 | M105: 0 | P105: 0
A114: ICMM Water - Antucoya ESG Databook
A121: ICMM Water Reporting Metrics - Minera Antucoya | E121: 2021 | H121: 2020 | K121: 2019 | N121: 2018
A122: Water Type | B122: Metric | C122: Source / Destination | E122: Water Quality | H122: Water Quality | K122: Water Quality | N122: Water Quality
E123: High (ML) | F123: Low (ML) | G123: Total (ML) | H123: High (ML) | I123: Low (ML) | J123: Total (ML) | K123: High (ML) | L123: Low (ML) | M123: Total (ML) | N123: High (ML) | O123: Low (ML) | P123: Total (ML)
A124: Operational water | B124: Withdrawal | C124: Surface water | E124: 0 | F124: 0 | G124: 0 | H124: 0 | I124: 0 | J124: 0 | K124: 0 | L124: 0 | M124: 0 | N124: 0 | O124: 0 | P124: 0
C125: Groundwater | E125: 0 | F125: 234.7084876 | G125: 234.7084876 | H125: 0 | I125: 203.5494159 | J125: 203.5494159 | K125: 0 | L125: 180.969 | M125: 180.969 | N125: 0 | O125: 218.9502886 | P125: 218.9502886
C126: Seawater | E126: 0 | F126: 0 | G126: 0 | H126: 0 | I126: 0 | J126: 0 | K126: 0 | L126: 0 | M126: 0 | N126: 0 | O126: 0 | P126: 0
C127: Third party water | E127: 0 | F127: 6081.175197 | G127: 6081.175197 | H127: 0 | I127: 5719.82079 | J127: 5719.82079 | K127: 0 | L127: 5622.949 | M127: 5622.949 | N127: 0 | O127: 5909.57509 | P127: 5909.57509
C128: Total | E128: 0 | F128: 6315.883685 | G128: 6315.883685 | H128: 0 | I128: 5923.370206 | J128: 5923.370206 | K128: 0 | L128: 5803.918 | M128: 5803.918 | N128: 0 | O128: 6128.525379 | P128: 6128.525379
B129: Discharge | C129: Surface water | E129: 0 | F129: 0 | G129: 0 | H129: 0 | I129: 0 | J129: 0 | K129: 0 | L129: 0 | M129: 0 | N129: 0 | O129: 0 | P129: 0
C130: Groundwater | E130: 0 | F130: 0 | G130: 0 | H130: 0 | I130: 0 | J130: 0 | K130: 0 | L130: 0 | M130: 0 | N130: 0 | O130: 0 | P130: 0
C131: Seawater | E131: 0 | F131: 0 | G131: 0 | H131: 0 | I131: 0 | J131: 0 | K131: 0 | L131: 0 | M131: 0 | N131: 0 | O131: 0 | P131: 0
C132: Third party water | E132: 0 | F132: 0 | G132: 0 | H132: 0 | I132: 0 | J132: 0 | K132: 0 | L132: 0 | M132: 0 | N132: 0 | O132: 0 | P132: 0
C133: Total | E133: 0 | F133: 0 | G133: 0 | H133: 0 | I133: 0 | J133: 0 | K133: 0 | L133: 0 | M133: 0 | N133: 0 | O133: 0 | P133: 0
B134: Consumption | C134: Evaporation | E134: 2568.994409 | F134: 0 | G134: 2568.994409 | H134: 2429.762361 | I134: 0 | J134: 2429.762361 | K134: 2599.1 | L134: 0 | M134: 2599.1 | N134: 2525.541268 | O134: 0 | P134: 2525.541268
C135: Entrainment | E135: 0 | F135: 3758.503953 | G135: 3758.503953 | H135: 0 | I135: 3628.871054 | J135: 3628.871054 | K135: 0 | L135: 2916.199 | M135: 2916.199 | N135: 0 | O135: 3675.367714 | P135: 3675.367714
C136: Evaporation (dust control) | E136: 86.79053429 | F136: 0 | G136: 86.79053429 | H136: 315.9711357 | I136: 0 | J136: 315.9711357 | K136: 132.575 | L136: 0 | M136: 132.575 | N136: 506.1626996 | O136: 0 | P136: 506.1626996
C137: Task Loss (pipeline) | E137: 0 | F137: 0 | G137: 0 | H137: 0 | I137: 0 | J137: 0 | K137: 0 | L137: 0 | M137: 0 | N137: 0 | O137: 0 | P137: 0
C138: Total | E138: 2655.784943 | F138: 3758.503953 | G138: 6414.288896 | H138: 2745.733497 | I138: 3628.871054 | J138: 6374.60455 | K138: 2731.675 | L138: 2916.199 | M138: 5647.874 | N138: 3031.703968 | O138: 3675.367714 | P138: 6707.071682
B139: Change in storage | G139: -15.98834316 | J139: -103.728671 | M139: 13.6765105 | P139: -48.78826922
B140: Reuse & Recycle | G140: 28030.50769 | J140: 27313.32933 | M140: 26864.96 | P140: 27822.93568
B141: Operational water use | G141: 34264.40421 | J141: 33236.02413 | M141: 32668.78 | P141: 33955.09153
A142: Other managed water | B142: Withdrawal | C142: Surface water | E142: 0 | F142: 0 | G142: 0 | H142: 0 | I142: 0 | J142: 0 | K142: 0 | L142: 0 | M142: 0 | N142: 0 | O142: 0 | P142: 0
C143: Groundwater | E143: 0 | F143: 0 | G143: 0 | H143: 0 | I143: 0 | J143: 0 | K143: 0 | L143: 0 | M143: 0 | N143: 0 | O143: 0 | P143: 0
C144: Seawater | E144: 0 | F144: 0 | G144: 0 | H144: 0 | I144: 0 | J144: 0 | K144: 0 | L144: 0 | M144: 0 | N144: 0 | O144: 0 | P144: 0
C145: Third party water | E145: 0 | F145: 0 | G145: 0 | H145: 0 | I145: 0 | J145: 0 | K145: 0 | L145: 0 | M145: 0 | N145: 0 | O145: 0 | P145: 0
C146: Total | E146: 0 | F146: 0 | G146: 0 | H146: 0 | I146: 0 | J146: 0 | K146: 0 | L146: 0 | M146: 0 | N146: 0 | O146: 0 | P146: 0
B147: Discharge | C147: Surface water | E147: 0 | F147: 0 | G147: 0 | H147: 0 | I147: 0 | J147: 0 | K147: 0 | L147: 0 | M147: 0 | N147: 0 | O147: 0 | P147: 0
C148: Groundwater | E148: 0 | F148: 0 | G148: 0 | H148: 0 | I148: 0 | J148: 0 | K148: 0 | L148: 0 | M148: 0 | N148: 0 | O148: 0 | P148: 0
C149: Seawater | E149: 0 | F149: 0 | G149: 0 | H149: 0 | I149: 0 | J149: 0 | K149: 0 | L149: 0 | M149: 0 | N149: 0 | O149: 0 | P149: 0
C150: Third party water | E150: 0 | F150: 0 | G150: 0 | H150: 0 | I150: 0 | J150: 0 | K150: 0 | L150: 0 | M150: 0 | N150: 0 | O150: 0 | P150: 0
C151: Total | E151: 0 | F151: 0 | G151: 0 | H151: 0 | I151: 0 | J151: 0 | K151: 0 | L151: 0 | M151: 0 | N151: 0 | O151: 0 | P151: 0
B152: Consumption | C152: Evaporation | E152: 0 | F152: 0 | G152: 0 | H152: 0 | I152: 0 | J152: 0 | K152: 0 | L152: 0 | M152: 0 | N152: 0 | O152: 0 | P152: 0
C153: Other loss | E153: 0 | F153: 0 | G153: 0 | H153: 0 | I153: 0 | J153: 0 | K153: 0 | L153: 0 | M153: 0 | N153: 0 | O153: 0 | P153: 0
C154: Total | E154: 0 | F154: 0 | G154: 0 | H154: 0 | I154: 0 | J154: 0 | K154: 0 | L154: 0 | M154: 0 | N154: 0 | O154: 0 | P154: 0
B155: Change in storage | G155: 0 | J155: 0 | M155: 0 | P155: 0
A164: ICMM Water - Zaldívar ESG Databook
A171: ICMM Water Reporting Metrics - Minera Zaldívar | E171: 2021 | H171: 2020 | K171: 2019 | N171: 2018
A172: Water Type | B172: Metric | C172: Source / Destination | E172: Water Quality | H172: Water Quality | K172: Water Quality | N172: Water Quality
E173: High (ML) | F173: Low (ML) | G173: Total (ML) | H173: High (ML) | I173: Low (ML) | J173: Total (ML) | K173: High (ML) | L173: Low (ML) | M173: Total (ML) | N173: High (ML) | O173: Low (ML) | P173: Total (ML)
A174: Operational water | B174: Withdrawal | C174: Surface water | E174: 0 | F174: 0 | G174: 0 | H174: 0 | I174: 0 | J174: 0 | K174: 0 | L174: 0 | M174: 0 | N174: 0 | O174: 0 | P174: 0
C175: Groundwater | E175: 0 | F175: 6652.718455 | G175: 6652.718455 | H175: 0 | I175: 7014.598954 | J175: 7014.598954 | K175: 0 | L175: 7015.301634 | M175: 7015.301634 | N175: 0 | O175: 7228.713036 | P175: 7228.713036
C176: Seawater | E176: 0 | F176: 0 | G176: 0 | H176: 0 | I176: 0 | J176: 0 | K176: 0 | L176: 0 | M176: 0 | N176: 0 | O176: 0 | P176: 0
C177: Third party water | E177: 0 | F177: 0 | G177: 0 | H177: 0 | I177: 0 | J177: 0 | K177: 0 | L177: 0 | M177: 0 | N177: 0 | O177: 0 | P177: 0
C178: Total | E178: 0 | F178: 6652.718455 | G178: 6652.718455 | H178: 0 | I178: 7014.598954 | J178: 7014.598954 | K178: 0 | L178: 7015.301634 | M178: 7015.301634 | N178: 0 | O178: 7228.713036 | P178: 7228.713036
B179: Discharge | C179: Surface water | E179: 0 | F179: 0 | G179: 0 | H179: 0 | I179: 0 | J179: 0 | K179: 0 | L179: 0 | M179: 0 | N179: 0 | O179: 0 | P179: 0
C180: Groundwater | E180: 0 | F180: 63.072 | G180: 63.072 | H180: 0 | I180: 0 | J180: 0 | K180: 0 | L180: 0 | M180: 0 | N180: 0 | O180: 0 | P180: 0
C181: Seawater | E181: 0 | F181: 0 | G181: 0 | H181: 0 | I181: 0 | J181: 0 | K181: 0 | L181: 0 | M181: 0 | N181: 0 | O181: 0 | P181: 0
C182: Third party water | E182: 0 | F182: 0 | G182: 0 | H182: 0 | I182: 0 | J182: 0 | K182: 0 | L182: 0 | M182: 0 | N182: 0 | O182: 0 | P182: 0
C183: Total | E183: 0 | F183: 63.072 | G183: 63.072 | H183: 0 | I183: 0 | J183: 0 | K183: 0 | L183: 0 | M183: 0 | N183: 0 | O183: 0 | P183: 0
B184: Consumption | C184: Evaporation | E184: 2286.590703 | F184: 0 | G184: 2286.590703 | H184: 2671.280647 | I184: 0 | J184: 2671.280647 | K184: 3192.109251 | L184: 0 | M184: 3192.109251 | N184: 2720.436615 | O184: 0 | P184: 2720.436615
C185: Entrainment | E185: 0 | F185: 2023.837011 | G185: 2023.837011 | H185: 0 | I185: 1080.538353 | J185: 1080.538353 | K185: 0 | L185: 1200.322715 | M185: 1200.322715 | N185: 0 | O185: 1522.688695 | P185: 1522.688695
C186: Evaporation (dust control) | E186: 984.4619833 | F186: 833.1237606 | G186: 1817.585744 | H186: 0 | I186: 2048.738575 | J186: 2048.738575 | K186: 0 | L186: 2064.572985 | M186: 2064.572985 | N186: 0 | O186: 1855.406562 | P186: 1855.406562
C187: Task Loss (pipeline) | E187: 0 | F187: 519.5250583 | G187: 519.5250583 | H187: 0 | I187: 820.0146784 | J187: 820.0146784 | K187: 0 | L187: 1420.320794 | M187: 1420.320794 | N187: 0 | O187: 2063.973035 | P187: 2063.973035
C188: Total | E188: 3271.052686 | F188: 3376.48583 | G188: 6647.538516 | H188: 2671.280647 | I188: 3949.291606 | J188: 6620.572253 | K188: 3192.109251 | L188: 4685.216495 | M188: 7877.325746 | N188: 2720.436615 | O188: 5442.068292 | P188: 8162.504907
B189: Change in storage | G189: 55.43985284 | J189: 17.94143396 | M189: -8.891654719 | P189: 28.945
B190: Reuse & Recycle | G190: 51710.12067 | J190: 139888.4013 | M190: 160033.8384 | P190: 162196.3622
B191: Operational water use | G191: 57366.34306 | J191: 145633.6332 | M191: 165425.4953 | P191: 167679.9671
A192: Other managed water | B192: Withdrawal | C192: Surface water | E192: 0 | F192: 0 | G192: 0 | H192: 0 | I192: 0 | J192: 0 | K192: 0 | L192: 0 | M192: 0 | N192: 0 | O192: 0 | P192: 0
C193: Groundwater | E193: 0 | F193: 0 | G193: 0 | H193: 0 | I193: 0 | J193: 0 | K193: 0 | L193: 0 | M193: 0 | N193: 0 | O193: 0 | P193: 0
C194: Seawater | E194: 0 | F194: 0 | G194: 0 | H194: 0 | I194: 0 | J194: 0 | K194: 0 | L194: 0 | M194: 0 | N194: 0 | O194: 0 | P194: 0
C195: Third party water | E195: 0 | F195: 0 | G195: 0 | H195: 0 | I195: 0 | J195: 0 | K195: 0 | L195: 0 | M195: 0 | N195: 0 | O195: 0 | P195: 0
C196: Total | E196: 0 | F196: 0 | G196: 0 | H196: 0 | I196: 0 | J196: 0 | K196: 0 | L196: 0 | M196: 0 | N196: 0 | O196: 0 | P196: 0
B197: Discharge | C197: Surface water | E197: 0 | F197: 0 | G197: 0 | H197: 0 | I197: 0 | J197: 0 | K197: 0 | L197: 0 | M197: 0 | N197: 0 | O197: 0 | P197: 0
C198: Groundwater | E198: 0 | F198: 0 | G198: 0 | H198: 0 | I198: 0 | J198: 0 | K198: 0 | L198: 0 | M198: 0 | N198: 0 | O198: 0 | P198: 0
C199: Seawater | E199: 0 | F199: 0 | G199: 0 | H199: 0 | I199: 0 | J199: 0 | K199: 0 | L199: 0 | M199: 0 | N199: 0 | O199: 0 | P199: 0
C200: Third party water | E200: 0 | F200: 0 | G200: 0 | H200: 0 | I200: 0 | J200: 0 | K200: 0 | L200: 0 | M200: 0 | N200: 0 | O200: 0 | P200: 0
C201: Total | E201: 0 | F201: 0 | G201: 0 | H201: 0 | I201: 0 | J201: 0 | K201: 0 | L201: 0 | M201: 0 | N201: 0 | O201: 0 | P201: 0
B202: Consumption | C202: Evaporation | E202: 0 | F202: 0 | G202: 0 | H202: 0 | I202: 0 | J202: 0 | K202: 0 | L202: 0 | M202: 0 | N202: 0 | O202: 0 | P202: 0
C203: Other loss | E203: 0 | F203: 0 | G203: 0 | H203: 0 | I203: 0 | J203: 0 | K203: 0 | L203: 0 | M203: 0 | N203: 0 | O203: 0 | P203: 0
C204: Total | E204: 0 | F204: 0 | G204: 0 | H204: 0 | I204: 0 | J204: 0 | K204: 0 | L204: 0 | M204: 0 | N204: 0 | O204: 0 | P204: 0
B205: Change in storage | G205: 0 | J205: 0 | M205: 0 | P205: 0

Sheet SASB - MD
A2: SASB - Mining Division ESG Databook
A8: » Sustainability Accounting Standard Board (SASB) Index, Metal and Mining Industry Standard. Contains quantitative data, consolidated Mining Division, with breakdown by mining operations.
A10: SASB - Mining Division | F10: 2021
A11: Topic SASB | B11: ID | C11: KPI | D11: Calculation Formula | E11: Unit | F11: Mining Division
A12: Greenhouse Gas Emissions | B12: EM-MM-110a.1 | C12: Gross global Scope 1 emissions | D12: Gross global Scope 1 greenhouse gas (GHG) emissions to the atmosphere of the seven GHGs covered under the Kyoto Protocol—carbon dioxide (CO2), methane (CH4), nitrous oxide (N2O), hydrofluorocarbons (HFCs), perfluorocarbons (PFCs), sulfur hexafluoride (SF6), and nitrogen trifluoride (NF3). | E12: Metric tonnes of CO2 equivalents | F12: 987948
B13: EM-MM-110a.2 | C13: Emission reduction target (long and short-term) | D13: Scope of the emission reduction target (e.g., the % of total emissions the target is applicable to); Whether the target is absolute- or intensity-based, and the metric denominator, if it is an intensity-based target; and % reduction against the base year. | F13: See pages 11 and 28, Antofagasta PLC TCFD Progress Report 2020. Under our five-year target, set in 2018, we committed to an absolute reduction of 300,000 tCO2e of emissions by 2022 compared to a 2017 baseline. We are pleased to report that the Mining division has achieved this target two years early, reporting a total reduction of 581,353 tCO2e. Following the achievement of this target, we have committed to a more ambitious 30% reduction (730,000 tCO2e) of our Scope 1 and 2 emissions by 2025, relative to 2020. This target is aligned with climate science to limit temperature rise to 1.5°C. We will begin to report progress against this new target as from next year. In 2021, we committed to two new GHG targets: the reduction of our Scope 1 and 2 emissions by 30%, or 730,000 tonnes of CO2e, by 2025 and carbon neutrality by 2050. We will begin to report progress towards these targets next year. https://www.antofagasta.co.uk/media/4184/antofagasta-tcfd-report-2020.pdf
A14: Energy Management | B14: EM-MM-130a.1 | C14: Energy consumed | D14: Total amount of energy consumed aggregated in gigajoules (GJ) | E14: Giga Joule | F14: 12534692.03
C15: Renewable energy | D15: Renewable energy consumption divided by total energy consumption, in % | E15: Percentage | F15: 0.3096302438
A16: Water Management | B16: EM-MM-140a.1. | C16: Water withdrawn | D16: Amount of water, in thousands of cubic meters, that was withdrawn from freshwater sources. | E16: Thousands of cubic meters | F16: Please find information in ICMM Water MD tab of this Databook.
D17: Water withdrawn in locations with High or Extremely High Baseline Water Stress as a percentage of the total water withdrawn. | E17: Percentage | F17: 1
C18: Water consumption | D18: Amount of water, in thousands of cubic meters, that was consumed in its operations | E18: Thousands of cubic meters | F18: Please find information in ICMM Water MD tab of this Databook.
D19: Water consumed in locations with High or Extremely High Baseline Water Stress as a percentage of the total water consumed. | E19: Percentage | F19: 1
A20: Waste & Hazardous Materials Management | B20: EM-MM-150a.4 | C20: Total weight of non-mineral waste generated | D20: Total amount, in metric tons, of non-mineral waste it generated | E20: Metric tonnes | F20: 40517.86
B21: EM-MM-150a.5 | C21: Total weight of tailings produced | D21: Total weight, in metric tons, of tailings it produced | E21: Metric tonnes | F21: 92864978
B22: EM-MM-150a.6 | C22: Total weight of waste rock generated | D22: Total amount, in metric tons, of waste rock it generated | E22: Metric tonnes | F22: 392518331.2
B23: EM-MM-150a.7 | C23: Total weight of hazardous waste generated | D23: Total weight, in metric tons, of waste it generated that was hazardous | E23: Metric tonnes | F23: 9783.94
B24: EM-MM-150a.8 | C24: Total weight of hazardous waste recycled | D24: Total weight, in metric tons, of hazardous waste it generated that was recycled | E24: Metric tonnes | F24: 0
A25: Security, Human Rights & Rights of Indigenous Peoples | B25: EM-MM-210a.1 | C25: Reserves in or near areas of conflict | D25: Amount of proved reserves located in or near areas of conflict divided by the total amount of proved reserves; Breakdown of the calculations by grade (in % metal content) of proved reserves | E25: Percentage | F25: All of Antofagasta Minerals mining companies are located imn Chile, a country that is not classified as an area o conflict, as defined by the Uppsala Conflict Data Program (UCDP) definition. 0% of proved or probable reserves.
D26: Amount of probable reserves located in or near areas of conflict divided by the total amount of probable reserves. Breakdown of the calculations by grade (in % metal content) of probable reserves | E26: Percentage
B27: EM-MM-210a.2 | C27: Reserves in or near indigenous land | D27: amount of proved reserves located in or near areas that are considered to be indigenous peoples’ land divided by the total amount of proved reserves. Breakdown of the calculations by the grade (in % metal content) of proved reserves | E27: Percentage | F27: Two of the four mining cvompanies of Antofagasta Minerals are alocated near areas that are considered to be indigenous peoples' land. 50% of proved reserves.
B28: EM-MM-210a.3 | C28: Discussion of engagement processes and due diligence practices with respect to human rights, indigenous rights, and operation in areas of conflict | F28: For information regarding Antofagasta Minerals human rights due diligence, and relations with indigenous comminuties, please see the Communities chapter of the 2021 Sustainability report available in the following link: https://www.antofagasta.co.uk/media/4326/antofagasta-sustainability-report-2021-english.pdf and Human Rights Due Diligence and Salar de Atacama Chapters of the Social Management report available in the following link: https://www.antofagasta.co.uk/media/4212/reporte_social_eng.pdf
A29: Community Relations | B29: EM-MM-210b.2 | C29: Non-technical delays | D29: Total number of site shutdowns or project delays due to non-technical factors. | F29: During 2021, Antofagasta Minerals did not experience any non-technical delays.
D30: Aggregate duration (in days) of site shutdowns or project delays due to non-technical factors. | E30: days
A31: Labor Relations | B31: EM-MM-310a.1 | C31: Collective bargaining agreements | D31: % of national employees in the active workforce that are covered under collective bargaining agreements during any part of the reporting period. | E31: Percentage | F31: 0.81
B32: EM-MM-310a.2 | C32: Work stopagges | D32: Number of work stoppages involving 1,000 or more workers lasting one full shift or longer. Total duration, in worker days idle (calculated as the product of days idle and number of workers involved.), of work stoppages involving 1,000 or more workers lasting one full shift or longer. | F32: During 2021, Antofagasta Minerals did not experience any work Stopagges.
A33: Workforce Health & Safety | B33: EM-MM-320a.1. | C33: Near Miss Frequency Rate (NMFR) | D33: (Statistic count × 200,000) / total hours worked, breakdown by employee categories (direct/fulltime employees or contractors) | E33: Total | F33: 14.3680326
D34: (Statistic count × 200,000) / total hours worked, breakdown by employee categories (direct/fulltime employees) | E34: Employees | F34: 14.72849486
D35: (Statistic count × 200,000) / total hours worked, breakdown by employee categories (contractors) | E35: Contractors | F35: 14.28572044
A36: Business Ethics & Transparency | B36: EM-MM-510a.1. | C36: Description of the management system for prevention of corruption and bribery throughout the value chain. | D36: The entity shall describe its management system and due diligence procedures for assessing and managing corruption and bribery risks internally and associated with business partners in its value chain. | F36: For information regarding Antofagasta Minerals management system for prevention of corruption and bribery please see the Compliance and Internal Controls chapter of the 2021 Sustainability report available in the following link: https://www.antofagasta.co.uk/media
B37: EM-MM-510a.2. | C37: Production in countries that have the 20 lowest rankings in Transparency International’s Corruption Perception Index | D37: Net production from activities located in the countries with the 20 lowest rankings in Transparency International’s Corruption Perception Index (CPI) | E37: saleable tonnes of minerals | F37: Antofagasta Minerals has no production in counties that have the 20 lowest rankings in Transparency International's Corruption Perception Index (CPI)
